Workbook

Sheet 2007 onwards
A2: Milk prices - EU league table
A3: Source: LTO/www.milkprices.nl
A4: Units: Euro/100kg
A5: Last updated: 12/04/2021
C8: Country | D8: 2007-02-01 | E8: 2007-03-01 | F8: 2007-04-01 | G8: 2007-05-01 | H8: 2007-06-01 | I8: 2007-07-01 | J8: 2007-08-01 | K8: 2007-09-01 | L8: 2007-10-01 | M8: 2007-11-01 | N8: 2007-12-01 | O8: 2008-01-01 | P8: 2008-02-01 | Q8: 2008-03-01 | R8: 2008-04-01 | S8: 2008-05-01 | T8: 2008-06-01 | U8: 2008-07-01 | V8: 2008-08-01 | W8: 2008-09-01 | X8: 2008-10-01 | Y8: 2008-11-01 | Z8: 2008-12-01 | AA8: 2009-01-01 | AB8: 2009-02-01 | AC8: 2009-03-01 | AD8: 2009-04-01 | AE8: 2009-05-01 | AF8: 2009-06-01 | AG8: 2009-07-01 | AH8: 2009-08-01 | AI8: 2009-09-01 | AJ8: 2009-10-01 | AK8: 2009-11-01 | AL8: 2009-12-01 | AM8: 2010-01-01 | AN8: 2010-02-01 | AO8: 2010-03-01 | AP8: 2010-04-01 | AQ8: 2010-05-01 | AR8: 2010-06-01 | AS8: 2010-07-01 | AT8: 2010-08-01 | AU8: 2010-09-01 | AV8: 2010-10-01 | AW8: 2010-11-01 | AX8: 2010-12-01 | AY8: 2011-01-01 | AZ8: 2011-02-01 | BA8: 2011-03-01 | BB8: 2011-04-01 | BC8: 2011-05-01 | BD8: 2011-06-01 | BE8: 2011-07-01 | BF8: 2011-08-01 | BG8: 2011-09-01 | BH8: 2011-10-01 | BI8: 2011-11-01 | BJ8: 2011-12-01 | BK8: 2012-01-01 | BL8: 2012-02-01 | BM8: 2012-03-01 | BN8: 2012-04-01 | BO8: 2012-05-01 | BP8: 2012-06-01 | BQ8: 2012-07-01 | BR8: 2012-08-01 | BS8: 2012-09-01 | BT8: 2012-10-01 | BU8: 2012-11-01 | BV8: 2012-12-01 | BW8: 2013-01-01 | BX8: 2013-02-01 | BY8: 2013-03-01 | BZ8: 2013-04-01 | CA8: 2013-05-01 | CB8: 2013-06-01 | CC8: 2013-07-01 | CD8: 2013-08-01 | CE8: 2013-09-01 | CF8: 2013-10-01 | CG8: 2013-11-01 | CH8: 2013-12-01 | CI8: 2014-01-01 | CJ8: 2014-02-01 | CK8: 2014-03-01 | CL8: 2014-04-01 | CM8: 2014-05-01 | CN8: 2014-06-01 | CO8: 2014-07-01 | CP8: 2014-08-01 | CQ8: 2014-09-01 | CR8: 2014-10-01 | CS8: 2014-11-01 | CT8: 2014-12-01 | CU8: 2015-01-01 | CV8: 2015-02-01 | CW8: 2015-03-01 | CX8: 2015-04-01 | CY8: 2015-05-01 | CZ8: 2015-06-01 | DA8: 2015-07-01 | DB8: 2015-08-01 | DC8: 2015-09-01 | DD8: 2015-10-01 | DE8: 2015-11-01 | DF8: 2015-12-11 | DG8: 2016-01-01 | DH8: 2016-02-01 | DI8: 2016-03-01 | DJ8: 2016-04-01 | DK8: 2016-05-01 | DL8: 2016-06-01 | DM8: 2016-07-01 | DN8: 2016-08-01 | DO8: 2016-09-01 | DP8: 2016-10-01 | DQ8: 2016-11-01 | DR8: 2016-12-01 | DS8: 2017-01-01 | DT8: 2017-02-01 | DU8: 2017-03-01 | DV8: 2017-04-01 | DW8: 2017-05-01 | DX8: 2017-06-01 | DY8: 2017-07-01 | DZ8: 2017-08-01 | EA8: 2017-09-01 | EB8: 2017-10-01 | EC8: 2017-11-01 | ED8: 2017-12-01 | EE8: 2018-01-01 | EF8: 2018-02-01 | EG8: 2018-03-01 | EH8: 2018-04-01 | EI8: 2018-05-01 | EJ8: 2018-06-01 | EK8: 2018-07-01 | EL8: 2018-08-01 | EM8: 2018-09-01 | EN8: 2018-10-01 | EO8: 2018-11-01 | EP8: 2018-12-01 | EQ8: 2019-01-01 | ER8: 2019-02-01 | ES8: 2019-03-01 | ET8: 2019-04-01 | EU8: 2019-05-01 | EV8: 2019-06-01 | EW8: 2019-07-01 | EX8: 2019-08-01 | EY8: 2019-09-01 | EZ8: 2019-10-01 | FA8: 2019-11-01 | FB8: 2019-12-01 | FC8: 2020-01-01 | FD8: 2020-02-01 | FE8: 2020-03-01 | FF8: 2020-04-01 | FG8: 2020-05-01 | FH8: 2020-06-01 | FI8: 2020-07-01 | FJ8: 2020-08-01 | FK8: 2020-09-01 | FL8: 2020-10-01 | FM8: 2020-11-01 | FN8: 2020-12-01 | FO8: 2021-01-01 | FP8: 2021-02-01
B9: Belgomilk (Milcobel) | C9: Belgium | D9: 29.03 | E9: 28.51 | F9: 28.51 | G9: 30.08 | H9: 32.71 | I9: 35.85 | J9: 38.48 | K9: 40.57 | L9: 43.2 | M9: 43.2 | N9: 42.15 | O9: 40.05 | P9: 38.43 | Q9: 37.43 | R9: 35.85 | S9: 33.76 | T9: 30.61 | U9: 30.61 | V9: 30.6 | W9: 29.56 | X9: 28.51 | Y9: 27.46 | Z9: 27.46 | AA9: 25.36 | AB9: 23.26 | AC9: 22.21 | AD9: 22.21 | AE9: 21.68 | AF9: 22.21 | AG9: 23 | AH9: 23.26 | AI9: 25.36 | AJ9: 27.98 | AK9: 29.55 | AL9: 29.55 | AM9: 27.98 | AN9: 28.5 | AO9: 29.55 | AP9: 30.08 | AQ9: 31.13 | AR9: 32.18 | AS9: 32.18 | AT9: 33.23 | AU9: 33.23 | AV9: 33.75 | AW9: 33.75 | AX9: 33.75 | AY9: 34.27 | AZ9: 35.85 | BA9: 34.8 | BB9: 34.28 | BC9: 34.27 | BD9: 34.8 | BE9: 34.27 | BF9: 33.22 | BG9: 33.22 | BH9: 33.22 | BI9: 33.22 | BJ9: 33.22 | BK9: 32.17 | BL9: 32.17 | BM9: 30.6 | BN9: 29.55 | BO9: 28.5 | BP9: 27.45 | BQ9: 27.45 | BR9: 29.55 | BS9: 30.6 | BT9: 31.65 | BU9: 33.75 | BV9: 34.79 | BW9: 34.79 | BX9: 34.79 | BY9: 34.79 | BZ9: 35.84 | CA9: 36.89 | CB9: 37.41 | CC9: 37.41 | CD9: 38.98 | CE9: 40.03 | CF9: 40.03 | CG9: 41.08 | CH9: 41.08 | CI9: 41.08 | CJ9: 41.08 | CK9: 41.08 | CL9: 40.03 | CM9: 38.98 | CN9: 36.88 | CO9: 35.83 | CP9: 34.78 | CQ9: 32.68 | CR9: 31.64 | CS9: 29.54 | CT9: 29.54 | CU9: 29.54 | CV9: 29.54 | CW9: 28.49 | CX9: 28.49 | CY9: 28.49 | CZ9: 28.49 | DA9: 28.49 | DB9: 28.49 | DC9: 26.39 | DD9: 26.39 | DE9: 26.39 | DF9: 26.39 | DG9: 26.39 | DH9: 25.26 | DI9: 24.26 | DJ9: 23.27 | DK9: 22.27 | DL9: 22.27 | DM9: 22.27 | DN9: 25.01 | DO9: 27.51 | DP9: 30.02 | DQ9: 33.51 | DR9: 36.02 | DS9: 35.01 | DT9: 34.01 | DU9: 34.01 | DV9: 34.01 | DW9: 34.01 | DX9: 35.01 | DY9: 36.01 | DZ9: 37.01 | EA9: 38.01 | EB9: 36.01 | EC9: 35.01 | ED9: 33.01 | EE9: 30 | EF9: 29.83 | EG9: 29.94 | EH9: 29.94 | EI9: 29.94 | EJ9: 32.72 | EK9: 33.22 | EL9: 33.97 | EM9: 34.72 | EN9: 34.72 | EO9: 34.72 | EP9: 33.72 | EQ9: 32.72 | ER9: 32.72 | ES9: 32.72 | ET9: 31.72 | EU9: 31.72 | EV9: 31.72 | EW9: 31.72 | EX9: 31.72 | EY9: 32.22 | EZ9: 32.22 | FA9: 32.22 | FB9: 33.72 | FC9: 33.72 | FD9: 32.72 | FE9: 29.72 | FF9: 28.81 | FG9: 28.73 | FH9: 28.73 | FI9: 28.73 | FJ9: 28.73 | FK9: 28.73 | FL9: 28.73 | FM9: 28.73 | FN9: 28.73 | FO9: 30.12 | FP9: 30.62
B10: Alois Muller | C10: Germany | AA10: 25.62 | AB10: 25.12 | AC10: 23.64 | AD10: 22.65 | AE10: 21.66 | AF10: 21.66 | AG10: 22.65 | AH10: 23.64 | AI10: 23.64 | AJ10: 25.12 | AK10: 27.1 | AL10: 27.1 | AM10: 27.1 | AN10: 27.1 | AO10: 27.6 | AP10: 28.09 | AQ10: 29.58 | AR10: 31.56 | AS10: 32.06 | AT10: 32.06 | AU10: 32.06 | AV10: 33.05 | AW10: 33.05 | AX10: 33.05 | AY10: 33.09 | AZ10: 33.63 | BA10: 34.13 | BB10: 34.13 | BC10: 35.36 | BD10: 35.36 | BE10: 35.36 | BF10: 35.36 | BG10: 35.36 | BH10: 34.87 | BI10: 34.87 | BJ10: 34.37 | BK10: 33.45 | BL10: 33.45 | BM10: 32.95 | BN10: 32.46 | BO10: 29.48 | BP10: 28.49 | BQ10: 28.49 | BR10: 28.49 | BS10: 29.48 | BT10: 30.97 | BU10: 33.45 | BV10: 33.94 | BW10: 33.94 | BX10: 33.94 | BY10: 33.94 | BZ10: 33.94 | CA10: 37.41 | CB10: 37.9 | CC10: 37.9 | CD10: 38.4 | CE10: 39.39 | CF10: 39.88 | CG10: 40.87 | CH10: 40.87 | CI10: 40.87 | CJ10: 40.87 | CK10: 39.88 | CL10: 38.4 | CM10: 36.91 | CN10: 35.48 | CO10: 35.48 | CP10: 36.47 | CQ10: 36.47 | CR10: 33.99 | CS10: 31.02 | CT10: 31.02 | CU10: 28.54 | CV10: 28.54 | CW10: 29.53 | CX10: 30.52 | CY10: 28.54 | CZ10: 27.55 | DA10: 26.87 | DB10: 26.87 | DC10: 26.38 | DD10: 26.87 | DE10: 27.86 | DF10: 27.86 | DG10: 27.37 | DH10: 26.38 | DI10: 25.14 | DJ10: 24.64 | DK10: 22.17 | DL10: 22.66 | DM10: 23.65 | DN10: 24.64 | DO10: 25.63 | DP10: 28.6 | DQ10: 31.57 | DR10: 31.82 | DS10: 31.82 | DT10: 31.82 | DU10: 31.82 | DV10: 31.82 | DW10: 32.81 | DX10: 34.79 | DY10: 37.27 | DZ10: 37.76 | EA10: 38.75 | EB10: 38.75 | EC10: 38.75 | ED10: 37.76 | EE10: 34.59 | EF10: 31.13 | EG10: 31.13 | EH10: 30.63 | EI10: 30.63 | EJ10: 30.73 | EK10: 31.72 | EL10: 31.72 | EM10: 32.96 | EN10: 33.95 | EO10: 34.45 | EP10: 34.45 | EQ10: 31.97 | ER10: 31.97 | ES10: 32.47 | ET10: 32.47 | EU10: 32.47 | EV10: 32.47 | EW10: 31.87 | EX10: 31.48 | EY10: 31.48 | EZ10: 31.48 | FA10: 31.48 | FB10: 31.48 | FC10: 31.48 | FD10: 31.48 | FE10: 30.98 | FF10: 30.88 | FG10: 30.39 | FH10: 30.39 | FI10: 30.68 | FJ10: 30.68 | FK10: 31.08 | FL10: 31.57 | FM10: 32.07 | FN10: 32.61 | FO10: 32.61 | FP10: 32.86
B11: Humana Milch Union | C11: Germany | D11: 27.68 | E11: 27.68 | F11: 27.68 | G11: 27.67 | H11: 30.65 | I11: 32.63 | J11: 35.6 | K11: 37.59 | L11: 40.56 | M11: 42.19 | N11: 41.55 | O11: 39.71 | P11: 37.73 | Q11: 36.74 | R11: 33.77 | S11: 33.77 | T11: 34.76 | U11: 34.76 | V11: 35.75 | W11: 35.75 | X11: 35.75 | Y11: 30.8 | Z11: 28.82 | AA11: 27.48 | AB11: 25.85 | AC11: 25.85 | AD11: 23.87 | AE11: 22.88 | AF11: 22.88 | AG11: 22.88 | AH11: 22.88 | AI11: 23.87 | AJ11: 24.86 | AK11: 27.83 | AL11: 26.84 | AM11: 26.84 | AN11: 26.84 | AO11: 26.84 | AP11: 27.83 | AQ11: 28.82 | AR11: 29.81 | AS11: 30.8 | AT11: 31.79 | AU11: 31.79 | AV11: 31.79 | AW11: 32.44 | AX11: 30.8 | AY11: 31.05 | AZ11: 31.05 | BA11: 33.03 | BB11: 34.02 | BC11: 34.02 | BD11: 34.02 | BE11: 34.02 | BF11: 34.02 | BG11: 35.01 | BH11: 35.01 | BI11: 35.6 | BJ11: 33.62 | BK11: 32.04 | BL11: 32.04 | BM11: 32.04 | BN11: 31.05 | BO11: 30.06 | BP11: 29.07 | BQ11: 28.08 | BR11: 28.08 | BS11: 30.06 | BT11: 32.12 | BU11: 34.1 | BV11: 33.11 | BW11: 33.11 | BX11: 33.11 | BY11: 33.11 | BZ11: 33.11 | CA11: 35.09 | CB11: 35.09 | CC11: 37.07
B12: DMK (Nordmilch) | C12: Germany | D12: 26.84 | E12: 26.84 | F12: 26.84 | G12: 26.84 | H12: 28.82 | I12: 33.77 | J12: 35.75 | K12: 36.74 | L12: 40.7 | M12: 40.7 | N12: 38.72 | O12: 38.72 | P12: 34.76 | Q12: 32.78 | R12: 30.8 | S12: 30.8 | T12: 31.79 | U12: 32.78 | V12: 32.78 | W12: 31.79 | X12: 28.82 | Y12: 26.84 | Z12: 25.85 | AA12: 23.87 | AB12: 22.88 | AC12: 22.88 | AD12: 22.88 | AE12: 21.89 | AF12: 21.89 | AG12: 21.89 | AH12: 21.89 | AI12: 22.88 | AJ12: 24.86 | AK12: 26.84 | AL12: 26.84 | AM12: 26.84 | AN12: 26.84 | AO12: 26.84 | AP12: 27.83 | AQ12: 28.82 | AR12: 29.81 | AS12: 30.8 | AT12: 31.79 | AU12: 32.78 | AV12: 33.77 | AW12: 33.77 | AX12: 32.78 | AY12: 31.2 | AZ12: 31.2 | BA12: 33.18 | BB12: 34.17 | BC12: 34.17 | BD12: 34.17 | BE12: 34.17 | BF12: 34.17 | BG12: 35.16 | BH12: 35.16 | BI12: 35.16 | BJ12: 33.18 | BK12: 32.19 | BL12: 32.19 | BM12: 32.19 | BN12: 31.2 | BO12: 30.21 | BP12: 29.22 | BQ12: 28.23 | BR12: 28.23 | BS12: 30.21 | BT12: 32.12 | BU12: 34.1 | BV12: 33.11 | BW12: 33.11 | BX12: 33.11 | BY12: 33.11 | BZ12: 33.11 | CA12: 35.09 | CB12: 35.09 | CC12: 37.07 | CD12: 38.06 | CE12: 40.04 | CF12: 41.03 | CG12: 41.03 | CH12: 40.04 | CI12: 39.05 | CJ12: 39.05 | CK12: 39.05 | CL12: 39.05 | CM12: 39.05 | CN12: 39.05 | CO12: 37.07 | CP12: 37.07 | CQ12: 35.09 | CR12: 33.11 | CS12: 31.13 | CT12: 29.15 | CU12: 28.16 | CV12: 28.16 | CW12: 28.16 | CX12: 29.15 | CY12: 29.15 | CZ12: 28.16 | DA12: 27.17 | DB12: 26.18 | DC12: 25.19 | DD12: 25.19 | DE12: 26.18 | DF12: 27.17 | DG12: 26.18 | DH12: 26.18 | DI12: 24.69 | DJ12: 23.21 | DK12: 21.23 | DL12: 20.24 | DM12: 20.24 | DN12: 20.24 | DO12: 22.41 | DP12: 27.37 | DQ12: 29.35 | DR12: 30.34 | DS12: 31.33 | DT12: 31.33 | DU12: 31.33 | DV12: 31.82 | DW12: 32.81 | DX12: 33.9 | DY12: 35.88 | DZ12: 37.86 | EA12: 38.85 | EB12: 39.84 | EC12: 39.84 | ED12: 39.84 | EE12: 34.82 | EF12: 30.79 | EG12: 30.79 | EH12: 30.79 | EI12: 30.79 | EJ12: 31.93 | EK12: 33.07 | EL12: 34.08 | EM12: 34.59 | EN12: 34.59 | EO12: 34.59 | EP12: 33.6 | EQ12: 32.72 | ER12: 31.73 | ES12: 31.71 | ET12: 31.71 | EU12: 31.2 | EV12: 31.26 | EW12: 31.26 | EX12: 31.26 | EY12: 31.26 | EZ12: 31.26 | FA12: 31.26 | FB12: 32.25 | FC12: 32.68 | FD12: 32.68 | FE12: 33.18 | FF12: 32.86 | FG12: 31.93 | FH12: 30.4 | FI12: 30.4 | FJ12: 30.91 | FK12: 30.91 | FL12: 31.93 | FM12: 31.93 | FN12: 31.93 | FO12: 31.83 | FP12: 31.32
B13: Hochwald Milch eG | C13: Germany (New) | DU13: 31.69 | DV13: 31.69 | DW13: 33.17 | DX13: 33.17 | DY13: 33.17 | DZ13: 33.17 | EA13: 35.15 | EB13: 36.14 | EC13: 37.63 | ED13: 37.63 | EE13: 36.64 | EF13: 36.64 | EG13: 33.67 | EH13: 32.68 | EI13: 31.19 | EJ13: 31.46 | EK13: 32.95 | EL13: 32.93 | EM13: 32.93 | EN13: 33.92 | EO13: 34.91 | EP13: 34.91 | EQ13: 32.93 | ER13: 32.93 | ES13: 31.94 | ET13: 31.94 | EU13: 32.53 | EV13: 32.53 | EW13: 32.53 | EX13: 32.53 | EY13: 32.53 | EZ13: 32.53 | FA13: 32.53 | FB13: 32.53 | FC13: 32.53 | FD13: 32.53 | FE13: 32.53 | FF13: 32.53 | FG13: 33.62 | FH13: 32.63 | FI13: 32.63 | FJ13: 32.63 | FK13: 33.62 | FL13: 33.62 | FM13: 33.62 | FN13: 33.62 | FO13: 33.9 | FP13: 32.9
B14: Arla Foods Denmark | C14: Denmark | D14: 27.63 | E14: 27.65 | F14: 27.63 | G14: 27.64 | H14: 27.66 | I14: 27.68 | J14: 29.35 | K14: 30.2 | L14: 34.69 | M14: 37.59 | N14: 38.01 | O14: 38.03 | P14: 38.02 | Q14: 38.01 | R14: 34.27 | S14: 34.27 | T14: 32.34 | U14: 35.11 | V14: 38.52 | W14: 37.62 | X14: 35.51 | Y14: 35.54 | Z14: 32.36 | AA14: 27.54 | AB14: 27.54 | AC14: 24.91 | AD14: 24.52 | AE14: 24.52 | AF14: 24.52 | AG14: 24.53 | AH14: 24.49 | AI14: 24.5 | AJ14: 25.83 | AK14: 25.84 | AL14: 27.15 | AM14: 27.16 | AN14: 27.15 | AO14: 27.16 | AP14: 27.09 | AQ14: 28.09 | AR14: 30.07 | AS14: 31.02 | AT14: 30.97 | AU14: 30.98 | AV14: 31.94 | AW14: 33.26 | AX14: 33.27 | AY14: 32.43 | AZ14: 32.41 | BA14: 32.42 | BB14: 32.69 | BC14: 34.15 | BD14: 34.79 | BE14: 35.02 | BF14: 35.05 | BG14: 33.47 | BH14: 33.65 | BI14: 33.66 | BJ14: 33.7 | BK14: 33.45 | BL14: 32.46 | BM14: 32.08 | BN14: 32.19 | BO14: 31.82 | BP14: 31.82 | BQ14: 30.96 | BR14: 30.39 | BS14: 30.37 | BT14: 30.43 | BU14: 31.4 | BV14: 33.37 | BW14: 32.92 | BX14: 32.93 | BY14: 33.61 | BZ14: 33.65 | CA14: 34.97 | CB14: 36.92 | CC14: 37 | CD14: 37 | CE14: 37.97 | CF14: 39.03 | CG14: 40.01 | CH14: 40 | CI14: 40.06 | CJ14: 41 | CK14: 40.99 | CL14: 40.99 | CM14: 39.54 | CN14: 39.84 | CO14: 38.39 | CP14: 37.16 | CQ14: 35.74 | CR14: 33.7 | CS14: 33.71 | CT14: 31.75 | CU14: 29.28 | CV14: 29.25 | CW14: 29.21 | CX14: 30.74 | CY14: 30.75 | CZ14: 29.78 | DA14: 28.9 | DB14: 27.92 | DC14: 27.92 | DD14: 28.55 | DE14: 28.55 | DF14: 28.54 | DG14: 28.66 | DH14: 27.68 | DI14: 27.7 | DJ14: 26.79 | DK14: 25.81 | DL14: 24.54 | DM14: 24.51 | DN14: 24.51 | DO14: 25.72 | DP14: 27.72 | DQ14: 29.69 | DR14: 31.67 | DS14: 33.83 | DT14: 34.83 | DU14: 35.32 | DV14: 34.16 | DW14: 33.12 | DX14: 32.81 | DY14: 34.55 | DZ14: 35.53 | EA14: 36.5 | EB14: 37.17 | EC14: 37.17 | ED14: 37.17 | EE14: 35.12 | EF14: 33.15 | EG14: 30.69 | EH14: 30.53 | EI14: 30.52 | EJ14: 31.58 | EK14: 33.36 | EL14: 34.33 | EM14: 34.31 | EN14: 35.19 | EO14: 35.18 | EP14: 34.18 | EQ14: 32.68 | ER14: 32.7 | ES14: 32.7 | ET14: 32.63 | EU14: 32.62 | EV14: 32.62 | EW14: 32.56 | EX14: 32.58 | EY14: 32.57 | EZ14: 32.48 | FA14: 32.47 | FB14: 32.47 | FC14: 32.46 | FD14: 32.47 | FE14: 33.46 | FF14: 33.5 | FG14: 32.53 | FH14: 32.56 | FI14: 31.83 | FJ14: 31.82 | FK14: 31.84 | FL14: 32.33 | FM14: 33.3 | FN14: 33.31 | FO14: 32.11 | FP14: 32.12
B15: Hameenlinnan.O. | C15: Finland | D15: 32.67 | E15: 29.67 | F15: 28.96 | G15: 29.76 | H15: 29.76 | I15: 34.8 | J15: 35.78 | K15: 36.77 | L15: 38.7 | M15: 38.71 | N15: 36.75 | O15: 37.41 | P15: 37.41 | Q15: 35.47 | R15: 33.82 | S15: 39.48 | T15: 39.48 | U15: 44.52 | V15: 45.49 | W15: 46.48 | X15: 46.47 | Y15: 46.49 | Z15: 46.49 | AA15: 42.31 | AB15: 42.27 | AC15: 36.7 | AD15: 35.05 | AE15: 35.05 | AF15: 36.99 | AG15: 37.48 | AH15: 38.46 | AI15: 39.43 | AJ15: 39.44 | AK15: 38.47 | AL15: 38.48 | AM15: 36.68 | AN15: 33.79 | AO15: 30.87 | AP15: 30.86 | AQ15: 30.86 | AR15: 31.84 | AS15: 36.69 | AT15: 38.65 | AU15: 39.62 | AV15: 39.63 | AW15: 39.64 | AX15: 39.64 | AY15: 39.64 | AZ15: 40.97 | BA15: 40.59 | BB15: 40.59 | BC15: 40.59 | BD15: 40.59 | BE15: 42.55 | BF15: 45.35 | BG15: 45.35 | BH15: 43.21 | BI15: 40.87 | BJ15: 41.29 | BK15: 41.29 | BL15: 41.29 | BM15: 39.35 | BN15: 39.35 | BO15: 39.35 | BP15: 40.9 | BQ15: 41.28 | BR15: 43.22 | BS15: 43.23 | BT15: 43.23 | BU15: 43.23 | BV15: 43.23 | BW15: 41.28 | BX15: 41.28 | BY15: 41.28 | BZ15: 40.79 | CA15: 40.79 | CB15: 42.73 | CC15: 42.73 | CD15: 44.68 | CE15: 44.68 | CF15: 45.17 | CG15: 43.24 | CH15: 43.24 | CI15: 43.24 | CJ15: 44.41 | CK15: 42.45 | CL15: 42.46 | CM15: 42.45 | CN15: 44.39 | CO15: 44.4 | CP15: 46.35 | CQ15: 46.34 | CR15: 46.34 | CS15: 41.97 | CT15: 41.97 | CU15: 41.97 | CV15: 37.79 | CW15: 35.83 | CX15: 35.84 | CY15: 35.83 | CZ15: 37.77 | DA15: 37.78 | DB15: 39.72 | DC15: 39.71 | DD15: 39.74 | DE15: 37.79 | DF15: 37.77
B16: Valio | C16: Finland (New) | DL16: 34.42 | DM16: 34.42 | DN16: 34.42 | DO16: 34.42 | DP16: 34.42 | DQ16: 35.1 | DR16: 35.1 | DS16: 35.1 | DT16: 35.1 | DU16: 35.1 | DV16: 35.1 | DW16: 35.1 | DX16: 35.1 | DY16: 36.36 | DZ16: 36.36 | EA16: 36.36 | EB16: 36.36 | EC16: 36.36 | ED16: 36.36 | EE16: 36.36 | EF16: 36.36 | EG16: 37.33 | EH16: 37.33 | EI16: 34.9 | EJ16: 34.9 | EK16: 34.9 | EL16: 34.9 | EM16: 34.9 | EN16: 34.9 | EO16: 34.9 | EP16: 34.9 | EQ16: 35.1 | ER16: 34.91 | ES16: 34.91 | ET16: 34.91 | EU16: 34.91 | EV16: 34.91 | EW16: 35.88 | EX16: 35.88 | EY16: 35.88 | EZ16: 35.88 | FA16: 35.88 | FB16: 35.88 | FC16: 35.88 | FD16: 35.88 | FE16: 35.88 | FF16: 35.88 | FG16: 35.88 | FH16: 35.88 | FI16: 35.88 | FJ16: 35.88 | FK16: 35.88 | FL16: 35.88 | FM16: 35.88 | FN16: 35.88 | FO16: 36.08 | FP16: 36.08
B17: Savencia (Basse Normandie) | C17: France | D17: 30.01 | E17: 29.12 | F17: 26.47 | G17: 26.71 | H17: 26.86 | I17: 29.14 | J17: 31.79 | K17: 31.99 | L17: 35.83 | M17: 35.09 | N17: 35.24 | O17: 40.83 | P17: 40.35 | Q17: 39.46 | R17: 32.89 | S17: 33.13 | T17: 33.28 | U17: 34.04 | V17: 36.7 | W17: 36.89 | X17: 32.92 | Y17: 32.52 | Z17: 32.52 | AA17: 36.17 | AB17: 35.69 | AC17: 33.83 | AD17: 23.04 | AE17: 27.99 | AF17: 27.17 | AG17: 28.47 | AH17: 30.17 | AI17: 30.17 | AJ17: 27.85 | AK17: 27.23 | AL17: 27.23 | AM17: 32.27 | AN17: 30.81 | AO17: 29.06 | AP17: 29.45 | AQ17: 29.45 | AR17: 30.54 | AS17: 32.8 | AT17: 34.2 | AU17: 34.2 | AV17: 33.87 | AW17: 33.38 | AX17: 32.38 | AY17: 33.61 | AZ17: 33.8 | BA17: 32.83 | BB17: 31.06 | BC17: 32.15 | BD17: 35.3 | BE17: 37.11 | BF17: 37.23 | BG17: 37.56 | BH17: 35.64 | BI17: 34.64 | BJ17: 32.78 | BK17: 35.36 | BL17: 35.44 | BM17: 34.02 | BN17: 30.33 | BO17: 31.02 | BP17: 34.33 | BQ17: 35.3 | BR17: 34.63 | BS17: 33.82 | BT17: 33.51 | BU17: 33.32 | BV17: 31.5 | BW17: 34.44 | BX17: 34.74 | BY17: 33.19 | BZ17: 32.94 | CA17: 33.43 | CB17: 35.32 | CC17: 38.44 | CD17: 38.46 | CE17: 37.44 | CF17: 39.44 | CG17: 39.5 | CH17: 38.9 | CI17: 42.16 | CJ17: 42.43 | CK17: 39.81 | CL17: 35.52 | CM17: 35.49 | CN17: 40.2 | CO17: 41.31 | CP17: 41.17 | CQ17: 40.24 | CR17: 36.15 | CS17: 33.71 | CT17: 32.37 | CU17: 33.38 | CV17: 32.9 | CW17: 32.41 | CX17: 32.12 | CY17: 31.97 | CZ17: 34.01 | DA17: 33.91 | DB17: 34.98 | DC17: 33.3 | DD17: 32.45 | DE17: 30.7 | DF17: 30.47 | DG17: 30.15 | DH17: 30.05 | DI17: 29.92 | DJ17: 29 | DK17: 29 | DL17: 28.86 | DM17: 28.86 | DN17: 28.86 | DO17: 28.86 | DP17: 29.98 | DQ17: 30.66 | DR17: 32.12 | DS17: 33.64 | DT17: 33.16 | DU17: 32.67 | DV17: 32.66 | DW17: 32.51 | DX17: 33.49 | DY17: 34.94 | DZ17: 34.94 | EA17: 34.94 | EB17: 35.09 | EC17: 35.09 | ED17: 34.6 | EE17: 34.12 | EF17: 34.12 | EG17: 33.15 | EH17: 32.51 | EI17: 32.51 | EJ17: 32.51 | EK17: 34.94 | EL17: 34.94 | EM17: 33.49 | EN17: 34.12 | EO17: 34.12 | EP17: 34.12 | EQ17: 35.09 | ER17: 34.6 | ES17: 34.6 | ET17: 34.94 | EU17: 34.94 | EV17: 34.94 | EW17: 35.91 | EX17: 35.91 | EY17: 35.91 | EZ17: 35.28 | FA17: 35.09 | FB17: 35.09 | FC17: 35.09 | FD17: 35.09 | FE17: 34.6 | FF17: 33.19 | FG17: 33.49 | FH17: 33.97 | FI17: 34.46 | FJ17: 34.16 | FK17: 33.97 | FL17: 34.6 | FM17: 34.6 | FN17: 34.6 | FO17: 34.79 | FP17: 34.6
B18: Danone (Pas de Calais) | C18: France | D18: 30.63 | E18: 29.39 | F18: 26.26 | G18: 26.46 | H18: 26.75 | I18: 31.84 | J18: 33.97 | K18: 34.17 | L18: 38.01 | M18: 38.01 | N18: 37.42 | O18: 41.42 | P18: 41.02 | Q18: 39.69 | R18: 32.78 | S18: 32.97 | T18: 33.27 | U18: 36.74 | V18: 38.87 | W18: 39.06 | X18: 36.21 | Y18: 37.18 | Z18: 35.13 | AA18: 36.53 | AB18: 34.59 | AC18: 31.78 | AD18: 23.55 | AE18: 26.9 | AF18: 28 | AG18: 29.71 | AH18: 31.36 | AI18: 31.36 | AJ18: 29.24 | AK18: 28.75 | AL18: 27.62 | AM18: 32.63 | AN18: 30.69 | AO18: 28.75 | AP18: 29.38 | AQ18: 29.87 | AR18: 32.1 | AS18: 35.82 | AT18: 35.81 | AU18: 35.81 | AV18: 33.6 | AW18: 32.56 | AX18: 31.66 | AY18: 33.7 | AZ18: 33.89 | BA18: 33.4 | BB18: 32.75 | BC18: 33.35 | BD18: 35.83 | BE18: 37.34 | BF18: 37.47 | BG18: 37.8 | BH18: 34.24 | BI18: 33.77 | BJ18: 32.36 | BK18: 35.65 | BL18: 35.58 | BM18: 34.45 | BN18: 31.77 | BO18: 31.77 | BP18: 34.9 | BQ18: 35.7 | BR18: 35.04 | BS18: 34.23 | BT18: 32.02 | BU18: 32.57 | BV18: 32.57 | BW18: 33.53 | BX18: 33.84 | BY18: 33.74 | BZ18: 32.8 | CA18: 32.8 | CB18: 33.77 | CC18: 38.77 | CD18: 40.37 | CE18: 40.97 | CF18: 38.43 | CG18: 37.34 | CH18: 36.86 | CI18: 39.61 | CJ18: 40.92 | CK18: 40.01 | CL18: 40.01 | CM18: 37.46 | CN18: 38.43 | CO18: 39.6 | CP18: 39.05 | CQ18: 39.05 | CR18: 34.95 | CS18: 35.02 | CT18: 33.3 | CU18: 33.71 | CV18: 32.82 | CW18: 32.08 | CX18: 31.16 | CY18: 32.17 | CZ18: 33.08 | DA18: 37.76 | DB18: 37.36 | DC18: 35.72 | DD18: 30.15 | DE18: 28.19 | DF18: 30.63 | DG18: 32.17 | DH18: 32.2 | DI18: 31.55 | DJ18: 31.12 | DK18: 30.68 | DL18: 31.14 | DM18: 31.55 | DN18: 30.98 | DO18: 30.85 | DP18: 31.79 | DQ18: 32.5 | DR18: 32.37 | DS18: 32.59 | DT18: 32.83 | DU18: 32.83 | DV18: 33.62 | DW18: 33.7 | DX18: 34.16 | DY18: 35.65 | DZ18: 35.65 | EA18: 35.93 | EB18: 35.64 | EC18: 35.88 | ED18: 35.59 | EE18: 35.67 | EF18: 34.98 | EG18: 34.56 | EH18: 32.44 | EI18: 32.11 | EJ18: 33.2 | EK18: 37.13 | EL18: 37.39 | EM18: 37.55 | EN18: 34.1 | EO18: 33.66 | EP18: 32.64 | EQ18: 34.21 | ER18: 34.31 | ES18: 34.02 | ET18: 34.37 | EU18: 34.37 | EV18: 35.34 | EW18: 37.59 | EX18: 37.45 | EY18: 37.45 | EZ18: 34.64 | FA18: 34.17 | FB18: 33.18 | FC18: 33.96 | FD18: 33.96 | FE18: 33.96 | FF18: 34.25 | FG18: 34.25 | FH18: 34.25 | FI18: 37.1 | FJ18: 36.5 | FK18: 36.7 | FL18: 35.09 | FM18: 34.7 | FN18: 33.46 | FO18: 33.41 | FP18: 33.41
B19: Lactalis (Pays de Loire) | C19: France | D19: 30.39 | E19: 28.62 | F19: 26.21 | G19: 26.41 | H19: 26.36 | I19: 29.83 | J19: 31.21 | K19: 31.5 | L19: 35.44 | M19: 35.82 | N19: 35.32 | O19: 40.66 | P19: 40.39 | Q19: 38.61 | R19: 32.49 | S19: 32.88 | T19: 32.83 | U19: 34.78 | V19: 36.51 | W19: 36.41 | X19: 32.68 | Y19: 33.12 | Z19: 32.62 | AA19: 36.01 | AB19: 35.74 | AC19: 32.99 | AD19: 23.32 | AE19: 26.52 | AF19: 26.72 | AG19: 28.47 | AH19: 30.2 | AI19: 30.39 | AJ19: 27.18 | AK19: 27.56 | AL19: 27.06 | AM19: 32.34 | AN19: 30.16 | AO19: 29.38 | AP19: 28.47 | AQ19: 28.97 | AR19: 31.38 | AS19: 33.35 | AT19: 35.21 | AU19: 35.21 | AV19: 33.17 | AW19: 32.69 | AX19: 32.45 | AY19: 33.91 | AZ19: 34.1 | BA19: 33.62 | BB19: 31.03 | BC19: 31.14 | BD19: 35.27 | BE19: 37.08 | BF19: 37.2 | BG19: 37.53 | BH19: 34.5 | BI19: 33.5 | BJ19: 33 | BK19: 35.38 | BL19: 35.66 | BM19: 34.73 | BN19: 30 | BO19: 30 | BP19: 34.14 | BQ19: 35.27 | BR19: 33.47 | BS19: 32.84 | BT19: 31.1 | BU19: 31.1 | BV19: 30.78 | BW19: 33.47 | BX19: 33.84 | BY19: 33.55 | BZ19: 30.59 | CA19: 33.01 | CB19: 34.47 | CC19: 37.36 | CD19: 37.75 | CE19: 36.94 | CF19: 36.18 | CG19: 36.18 | CH19: 36.67 | CI19: 41.34 | CJ19: 41.4 | CK19: 38.52 | CL19: 34.87 | CM19: 35.07 | CN19: 38.64 | CO19: 38.42 | CP19: 38.46 | CQ19: 38.48 | CR19: 34.21 | CS19: 34.21 | CT19: 34.07 | CU19: 32.7 | CV19: 32.43 | CW19: 32.28 | CX19: 31.5 | CY19: 31.5 | CZ19: 31.5 | DA19: 33.57 | DB19: 33.23 | DC19: 32.16 | DD19: 31.14 | DE19: 31.14 | DF19: 31.14 | DG19: 29.3 | DH19: 29.3 | DI19: 29.28 | DJ19: 28.03 | DK19: 27.87 | DL19: 27.75 | DM19: 27.48 | DN19: 29.87 | DO19: 30.36 | DP19: 30.36 | DQ19: 31.33 | DR19: 31.83 | DS19: 32.77 | DT19: 32.81 | DU19: 31.95 | DV19: 31.74 | DW19: 31.88 | DX19: 30.84 | DY19: 33.85 | DZ19: 34.74 | EA19: 35.66 | EB19: 34.22 | EC19: 34.64 | ED19: 34.3 | EE19: 33.77 | EF19: 33.77 | EG19: 32.69 | EH19: 31.83 | EI19: 31.83 | EJ19: 32.66 | EK19: 34.35 | EL19: 34.83 | EM19: 35.32 | EN19: 35.57 | EO19: 35.57 | EP19: 35.57 | EQ19: 34.89 | ER19: 34.89 | ES19: 34.89 | ET19: 34.5 | EU19: 34.7 | EV19: 34.7 | EW19: 34.89 | EX19: 34.89 | EY19: 34.7 | EZ19: 34.99 | FA19: 34.99 | FB19: 35.61 | FC19: 35.42 | FD19: 35.72 | FE19: 35.03 | FF19: 34.5 | FG19: 34.5 | FH19: 33.39 | FI19: 33.48 | FJ19: 34.04 | FK19: 33.94 | FL19: 33.99 | FM19: 33.99 | FN19: 34.03 | FO19: 34.24 | FP19: 34.24
B20: Sodiaal | C20: France | D20: 27.74 | E20: 27.26 | F20: 24.04 | G20: 24.27 | H20: 26.73 | I20: 30.17 | J20: 33.87 | K20: 34.02 | L20: 35.98 | M20: 34.76 | N20: 33.13 | O20: 37.07 | P20: 37.07 | Q20: 37.07 | R20: 32.19 | S20: 32.77 | T20: 35.78 | U20: 37.44 | V20: 38.41 | W20: 38.41 | X20: 32.66 | Y20: 31.06 | Z20: 29.51 | AA20: 32.26 | AB20: 30.71 | AC20: 29.74 | AD20: 25.57 | AE20: 26.06 | AF20: 30.34 | AG20: 31.91 | AH20: 32.88 | AI20: 32.39 | AJ20: 27.13 | AK20: 27.03 | AL20: 27.03 | AM20: 32 | AN20: 31.42 | AO20: 28.61 | AP20: 29.36 | AQ20: 29.36 | AR20: 32.47 | AS20: 34.43 | AT20: 34.43 | AU20: 35.93 | AV20: 32.51 | AW20: 31.53 | AX20: 30.56 | AY20: 33.38 | AZ20: 33.57 | BA20: 33.09 | BB20: 31.98 | BC20: 31.98 | BD20: 35.26 | BE20: 37.78 | BF20: 37.9 | BG20: 37.84 | BH20: 34.63 | BI20: 33.63 | BJ20: 32.71 | BK20: 34.15 | BL20: 34.13 | BM20: 32.81 | BN20: 31.87 | BO20: 31.87 | BP20: 35.22 | BQ20: 36.2 | BR20: 35.56 | BS20: 34.69 | BT20: 32.4 | BU20: 31.79 | BV20: 31.48 | BW20: 33.76 | BX20: 33.58 | BY20: 33.48 | BZ20: 33.48 | CA20: 33.21 | CB20: 33.21 | CC20: 37.37 | CD20: 37.86 | CE20: 38.83 | CF20: 38 | CG20: 37.03 | CH20: 34.6 | CI20: 36.88 | CJ20: 36.88 | CK20: 36.79 | CL20: 36.79 | CM20: 36.97 | CN20: 37.26 | CO20: 38.72 | CP20: 42.04 | CQ20: 42.04 | CR20: 42.04 | CS20: 36.75 | CT20: 36.75 | CU20: 33.59 | CV20: 33.11 | CW20: 32.62 | CX20: 31.95 | CY20: 31.95 | CZ20: 32.15 | DA20: 32.81 | DB20: 35.91 | DC20: 35.91 | DD20: 33.14 | DE20: 32.32 | DF20: 32.32 | DG20: 31.68 | DH20: 30.71 | DI20: 30.71 | DJ20: 29.93 | DK20: 29.22 | DL20: 28.96 | DM20: 28.96 | DN20: 30.41 | DO20: 30.41 | DP20: 30.4 | DQ20: 30.4 | DR20: 31.28 | DS20: 33.49 | DT20: 33.49 | DU20: 33 | DV20: 32.06 | DW20: 32.06 | DX20: 32.1 | DY20: 35.11 | DZ20: 36.08 | EA20: 36.08 | EB20: 36.08 | EC20: 35.4 | ED20: 35.4 | EE20: 35.11 | EF20: 34.62 | EG20: 33.65 | EH20: 32.62 | EI20: 32.62 | EJ20: 34.08 | EK20: 35.05 | EL20: 36.51 | EM20: 36.51 | EN20: 36.51 | EO20: 35.05 | EP20: 34.08 | EQ20: 35.11 | ER20: 35.07 | ES20: 35.07 | ET20: 34.09 | EU20: 34.64 | EV20: 34.83 | EW20: 35.7 | EX20: 37.16 | EY20: 36.67 | EZ20: 36.19 | FA20: 34.02 | FB20: 34.22 | FC20: 34.78 | FD20: 35.06 | FE20: 34.86 | FF20: 33.87 | FG20: 33.34 | FH20: 34.2 | FI20: 34.66 | FJ20: 35.79 | FK20: 35.83 | FL20: 35.79 | FM20: 34.82 | FN20: 34.94 | FO20: 34.64 | FP20: 34.75
B21: Arla Foods UK | C21: GB | D21: 25.24 | E21: 24.79 | F21: 25.04 | G21: 24.96 | H21: 25.75 | I21: 28.1 | J21: 30.83 | K21: 34.37 | L21: 37.85 | M21: 37.18 | N21: 36.57
B22: First Milk | C22: GB | D22: 24.73 | E22: 23.76 | F22: 22.48 | G22: 21.8 | H22: 22.31 | I22: 25.91 | J22: 26.96 | K22: 30.63 | L22: 34.16 | M22: 36.43 | N22: 34.49 | O22: 32.72 | P22: 32.58 | Q22: 30.87 | R22: 28.31 | S22: 27.52 | T22: 29.49 | U22: 30.85 | V22: 32.64 | W22: 33.6 | X22: 34.17 | Y22: 32.43 | Z22: 28.6 | AA22: 26.38 | AB22: 26.44 | AC22: 24.95 | AD22: 22.85 | AE22: 21.36 | AF22: 23.61 | AG22: 24.62 | AH22: 24.94 | AI22: 24.89 | AJ22: 24.35 | AK22: 24.08 | AL22: 23.18 | AM22: 23.25 | AN22: 23.71 | AO22: 23.05 | AP22: 21.97 | AQ22: 21.93 | AR22: 24.83 | AS22: 26.13 | AT22: 27.27 | AU22: 28.37 | AV22: 28.71 | AW22: 28.06 | AX22: 27.27 | AY22: 26.87 | AZ22: 28.38 | BA22: 27.14 | BB22: 25.64 | BC22: 25.36 | BD22: 26.82 | BE22: 28.85 | BF22: 29.67 | BG22: 31.06 | BH22: 32.46 | BI22: 32.81 | BJ22: 31.99 | BK22: 31.9 | BL22: 31.71 | BM22: 31.1 | BN22: 29.77 | BO22: 29.23 | BP22: 31.18 | BQ22: 32.23 | BR22: 32.64 | BS22: 33.6 | BT22: 33.33 | BU22: 34.72 | BV22: 33.84 | BW22: 33.09 | BX22: 31.93 | BY22: 31.33 | BZ22: 30.72 | CA22: 29.78 | CB22: 31.61 | CC22: 33.61 | CD22: 34.85 | CE22: 37.06 | CF22: 35.41 | CG22: 36.98 | CH22: 37.67 | CI22: 38.09 | CJ22: 38.18 | CK22: 37.88 | CL22: 38.78 | CM22: 39.24 | CN22: 39.79 | CO22: 38.25 | CP22: 36.48 | CQ22: 36.11 | CR22: 32.4 | CS22: 31.96 | CT22: 29.72 | CU22: 29.11 | CV22: 28.33 | CW22: 28.99 | CX22: 28.11 | CY22: 27.84 | CZ22: 28.14 | DA22: 27.28 | DB22: 27 | DC22: 25.26 | DD22: 28.64 | DE22: 28.4 | DF22: 27.05
B23: Saputo Dairy UK (Dairy Crest Davidstow) | C23: GB | I23: 28.17 | J23: 29.47 | K23: 31.29 | L23: 38.06 | M23: 38.37 | N23: 37.06 | O23: 33.76 | P23: 33.62 | Q23: 32.57 | R23: 28.97 | S23: 29.72 | T23: 29.74 | U23: 32.75 | V23: 32.77 | W23: 35.6 | X23: 37.26 | Y23: 35.35 | Z23: 31.85 | AA23: 29.82 | AB23: 29.71 | AC23: 28.65 | AD23: 25.51 | AE23: 25.07 | AF23: 26.18 | AG23: 28 | AH23: 27.93 | AI23: 28.69 | AJ23: 28.45 | AK23: 28.98 | AL23: 28.4 | AM23: 27.29 | AN23: 27.5 | AO23: 26.73 | AP23: 25.05 | AQ23: 25.28 | AR23: 26.48 | AS23: 29.89 | AT23: 30.27 | AU23: 31.49 | AV23: 32.79 | AW23: 32.07 | AX23: 31.76 | AY23: 30.08 | AZ23: 31.27 | BA23: 30.54 | BB23: 27.77 | BC23: 29.31 | BD23: 29.27 | BE23: 31.82 | BF23: 32.13 | BG23: 33.98 | BH23: 34.6 | BI23: 35.79 | BJ23: 35.81 | BK23: 34.55 | BL23: 34.34 | BM23: 34.44 | BN23: 32.3 | BO23: 32.72 | BP23: 32.96 | BQ23: 35.52 | BR23: 35.5 | BS23: 36.92 | BT23: 38.06 | BU23: 38.19 | BV23: 37.18 | BW23: 35.99 | BX23: 34.73 | BY23: 34.88 | BZ23: 32.66 | CA23: 32.43 | CB23: 33.74 | CC23: 36.47 | CD23: 37.16 | CE23: 39.65 | CF23: 39.95 | CG23: 41.52 | CH23: 41.03 | CI23: 39.73 | CJ23: 39.83 | CK23: 39.51 | CL23: 37.17 | CM23: 37.31 | CN23: 38.14 | CO23: 41.42 | CP23: 41.22 | CQ23: 41.95 | CR23: 40.55 | CS23: 38.87 | CT23: 38.33 | CU23: 35.92 | CV23: 35.63 | CW23: 34.45 | CX23: 31.53 | CY23: 31.19 | CZ23: 31.55 | DA23: 35.26 | DB23: 35.24 | DC23: 36.41 | DD23: 36.99 | DE23: 36.31 | DF23: 33.87 | DG23: 30.65 | DH23: 29.82 | DI23: 27.65 | DJ23: 23.49 | DK23: 23.62 | DL23: 23.3 | DM23: 24.5 | DN23: 24.09 | DO23: 27.02 | DP23: 27.39 | DQ23: 28.74 | DR23: 31.05 | DS23: 31.01 | DT23: 33.59 | DU23: 33.09 | DV23: 31.19 | DW23: 30.64 | DX23: 29.05 | DY23: 30.13 | DZ23: 29.3 | EA23: 32.56 | EB23: 35.43 | EC23: 36.08 | ED23: 36.3 | EE23: 34.63 | EF23: 33.5 | EG23: 32.72 | EH23: 29.23 | EI23: 27.67 | EJ23: 28.23 | EK23: 31.13 | EL23: 33.05 | EM23: 35.02 | EN23: 35.97 | EO23: 36.03 | EP23: 34.83 | EQ23: 33.64 | ER23: 33.05 | ES23: 33.6 | ET23: 30.93 | EU23: 30.29 | EV23: 29.91 | EW23: 32.06 | EX23: 31.5 | EY23: 34 | EZ23: 35.16 | FA23: 35.89 | FB23: 35.75 | FC23: 33.95 | FD23: 33.48 | FE23: 30.93 | FF23: 29.11 | FG23: 28.08 | FH23: 28.25 | FI23: 28.06 | FJ23: 28.19 | FK23: 30.05 | FL23: 32.79 | FM23: 33.21 | FN23: 32.84 | FO23: 33.33 | FP23: 34.1
B24: Dairygold | C24: Ireland | DH24: 27.84 | DI24: 23.55 | DJ24: 22.56 | DK24: 22.56 | DL24: 22.56 | DM24: 24.04 | DN24: 25.04 | DO24: 26.03 | DP24: 28.01 | DQ24: 29.15 | DR24: 30.59 | DS24: 31.58 | DT24: 31.58 | DU24: 31.58 | DV24: 31.58 | DW24: 32.8 | DX24: 33.8 | DY24: 34.8 | DZ24: 36.3 | EA24: 36.3 | EB24: 36.3 | EC24: 36.3 | ED24: 36.3 | EE24: 36.3 | EF24: 34.3 | EG24: 34.25 | EH24: 32.27 | EI24: 32.3 | EJ24: 32.3 | EK24: 32.3 | EL24: 32.3 | EM24: 32.3 | EN24: 32.3 | EO24: 32.3 | EP24: 32.3 | EQ24: 32.3 | ER24: 31.3 | ES24: 31.3 | ET24: 30.8 | EU24: 30.8 | EV24: 30.8 | EW24: 29.8 | EX24: 28.81 | EY24: 29.3 | EZ24: 29.3 | FA24: 30.3 | FB24: 31.31 | FC24: 31.8 | FD24: 33.75 | FE24: 30.78 | FF24: 28.81 | FG24: 29.3 | FH24: 30.3 | FI24: 30.8 | FJ24: 30.8 | FK24: 31.87 | FL24: 31.87 | FM24: 32.37 | FN24: 32.37 | FO24: 35.28 | FP24: 36
B25: Glanbia | C25: Ireland | D25: 29.99 | E25: 25.11 | F25: 27.4 | G25: 29.25 | H25: 32.34 | I25: 32.34 | J25: 36.63 | K25: 38.35 | L25: 45.55 | M25: 46.91 | N25: 46.91 | O25: 45.55 | P25: 43.66 | Q25: 38.78 | R25: 34.63 | S25: 33.03 | T25: 31.49 | U25: 32.46 | V25: 32.46 | W25: 29.54 | X25: 36.09 | Y25: 37.45 | Z25: 30.28 | AA25: 29.09 | AB25: 29.09 | AC25: 21.01 | AD25: 21.06 | AE25: 21.06 | AF25: 21.06 | AG25: 21.06 | AH25: 21.06 | AI25: 21.06 | AJ25: 23.99 | AK25: 25.15 | AL25: 24.98 | AM25: 24.98 | AN25: 25.98 | AO25: 25.98 | AP25: 27.96 | AQ25: 30.03 | AR25: 29.95 | AS25: 29.95 | AT25: 29.95 | AU25: 29.95 | AV25: 29.95 | AW25: 35.29 | AX25: 29.95 | AY25: 35.34 | AZ25: 36.8 | BA25: 32.92 | BB25: 32.92 | BC25: 32.92 | BD25: 33.93 | BE25: 33.93 | BF25: 33.93 | BG25: 33.91 | BH25: 33.91 | BI25: 39.25 | BJ25: 33.91 | BK25: 33.91 | BL25: 33.91 | BM25: 33.91 | BN25: 30.94 | BO25: 28.46 | BP25: 28.46 | BQ25: 28.46 | BR25: 29.31 | BS25: 30.44 | BT25: 30.44 | BU25: 37.27 | BV25: 31.93 | BW25: 33.12 | BX25: 38.46 | BY25: 35.04 | BZ25: 35.04 | CA25: 37.03 | CB25: 37.03 | CC25: 37.03 | CD25: 39.01 | CE25: 39.01 | CF25: 39.01 | CG25: 44.35 | CH25: 38.94 | CI25: 38.94 | CJ25: 38.94 | CK25: 38.94 | CL25: 38.94 | CM25: 36.96 | CN25: 36.96 | CO25: 34.97 | CP25: 32.98 | CQ25: 30.5 | CR25: 30.5 | CS25: 30.5 | CT25: 30.5 | CU25: 30.5 | CV25: 30.44 | CW25: 30.44 | CX25: 28.46 | CY25: 27.47 | CZ25: 25.97 | DA25: 24.98 | DB25: 24.98 | DC25: 23.99 | DD25: 23.99 | DE25: 23.99 | DF25: 23.99 | DG25: 23.99 | DH25: 26.74 | DI25: 22.01 | DJ25: 22.01 | DK25: 21 | DL25: 21 | DM25: 21.02 | DN25: 23 | DO25: 24.99 | DP25: 26.97 | DQ25: 28.95 | DR25: 29.89 | DS25: 30.88 | DT25: 33.11 | DU25: 30.88 | DV25: 30.88 | DW25: 31.87 | DX25: 32.86 | DY25: 33.85 | DZ25: 34.84 | EA25: 34.84 | EB25: 34.84 | EC25: 34.84 | ED25: 36.02 | EE25: 36.02 | EF25: 37.31 | EG25: 32.98 | EH25: 31.03 | EI25: 30.14 | EJ25: 32.09 | EK25: 32.14 | EL25: 32.21 | EM25: 32.21 | EN25: 32.21 | EO25: 32.06 | EP25: 32.06 | EQ25: 32.06 | ER25: 35.52 | ES25: 30.69 | ET25: 30.68 | EU25: 30.68 | EV25: 30.68 | EW25: 29.68 | EX25: 28.69 | EY25: 29.15 | EZ25: 29.15 | FA25: 32.09 | FB25: 31.14 | FC25: 32.52 | FD25: 35.29 | FE25: 30.53 | FF25: 28.62 | FG25: 28.8 | FH25: 30.29 | FI25: 30.29 | FJ25: 30.78 | FK25: 31.15 | FL25: 31.15 | FM25: 31.61 | FN25: 34.21 | FO25: 34.9 | FP25: 35.98
B26: Kerry | C26: Ireland | D26: 25.55 | E26: 25.55 | F26: 27.85 | G26: 29.34 | H26: 31.83 | I26: 33.82 | J26: 36.31 | K26: 38.8 | L26: 38.8 | M26: 38.8 | N26: 38.8 | O26: 38.8 | P26: 38.8 | Q26: 38.8 | R26: 33.82 | S26: 33.82 | T26: 31.83 | U26: 31.83 | V26: 31.83 | W26: 31.83 | X26: 31.83 | Y26: 28.85 | Z26: 28.85 | AA26: 24.86 | AB26: 24.86 | AC26: 22.87 | AD26: 22.87 | AE26: 22.87 | AF26: 21.88 | AG26: 21.88 | AH26: 21.88 | AI26: 21.88 | AJ26: 23.87 | AK26: 23.87 | AL26: 23.87 | AM26: 23.87 | AN26: 24.86 | AO26: 26.85 | AP26: 27.85 | AQ26: 29.84 | AR26: 30.77 | AS26: 29.84 | AT26: 29.84 | AU26: 29.84 | AV26: 29.84 | AW26: 29.84 | AX26: 29.84 | AY26: 29.84 | AZ26: 32.83 | BA26: 32.83 | BB26: 32.83 | BC26: 32.83 | BD26: 33.82 | BE26: 33.82 | BF26: 33.82 | BG26: 33.82 | BH26: 33.82 | BI26: 33.82 | BJ26: 33.82 | BK26: 33.82 | BL26: 33.82 | BM26: 33.82 | BN26: 31 | BO26: 29.08 | BP26: 29.08 | BQ26: 29.08 | BR26: 29.08 | BS26: 31 | BT26: 31 | BU26: 31 | BV26: 31 | BW26: 33.16 | BX26: 33.05 | BY26: 34.98 | BZ26: 34.98 | CA26: 36.92 | CB26: 37.88 | CC26: 37.88 | CD26: 37.88 | CE26: 38.84 | CF26: 38.84 | CG26: 38.85 | CH26: 38.85 | CI26: 38.85 | CJ26: 38.77 | CK26: 38.77 | CL26: 38.77 | CM26: 38.77 | CN26: 36.84 | CO26: 34.92 | CP26: 34.92 | CQ26: 32.02 | CR26: 32.02 | CS26: 31.06 | CT26: 30.09 | CU26: 30.09 | CV26: 30.37 | CW26: 30.37 | CX26: 30.37 | CY26: 28.45 | CZ26: 28.45 | DA26: 26.52 | DB26: 26.52 | DC26: 26.52 | DD26: 26.52 | DE26: 25.56 | DF26: 25.56 | DG26: 25.56 | DH26: 25.34 | DI26: 25.34 | DJ26: 23.89 | DK26: 22.93 | DL26: 22.93 | DM26: 22.93 | DN26: 25.34 | DO26: 26.3 | DP26: 28.22 | DQ26: 29.19 | DR26: 29.14 | DS26: 31.08 | DT26: 31.06 | DU26: 31.06 | DV26: 31.06 | DW26: 32.02 | DX26: 32.98 | DY26: 34.42 | DZ26: 35.86 | EA26: 35.86 | EB26: 35.86 | EC26: 35.86 | ED26: 35.86 | EE26: 35.86 | EF26: 33.94 | EG26: 33.89 | EH26: 31.43 | EI26: 32.43 | EJ26: 32.43 | EK26: 33.43 | EL26: 33.43 | EM26: 33.43 | EN26: 33.43 | EO26: 33.43 | EP26: 33.43 | EQ26: 32.51 | ER26: 31.51 | ES26: 31.82 | ET26: 31.41 | EU26: 31.91 | EV26: 31.91 | EW26: 30 | EX26: 30 | EY26: 30 | EZ26: 30 | FA26: 31.01 | FB26: 32.01 | FC26: 32.01 | FD26: 33.01 | FE26: 31.31 | FF26: 30.49 | FG26: 30.46 | FH26: 31.27 | FI26: 31.27 | FJ26: 31.69 | FK26: 31.72 | FL26: 31.7 | FM26: 32.01 | FN26: 32.01 | FO26: 32.45 | FP26: 33.45
B27: Granarolo*** (North) | C27: Italy | AA27: 37.54 | AB27: 37.54 | AC27: 37.54 | AD27: 32.52 | AE27: 32.52 | AF27: 32.52 | AG27: 32.52 | AH27: 33.98 | AI27: 33.98 | AJ27: 34.95 | AK27: 34.95 | AL27: 34.95 | AM27: 33.98 | AN27: 33.98 | AO27: 33.98 | AP27: 33.98 | AQ27: 33.98 | AR27: 33.98 | AS27: 33.98 | AT27: 35.03 | AU27: 35.03 | AV27: 35.03 | AW27: 36.88 | AX27: 36.89 | AY27: 39.7 | AZ27: 39.7 | BA27: 39.7 | BB27: 40.18 | BC27: 40.18 | BD27: 40.18 | BE27: 40.18 | BF27: 40.18 | BG27: 41.39 | BH27: 40.42 | BI27: 40.42 | BJ27: 40.42 | BK27: 41.64 | BL27: 41.64 | BM27: 41.64 | BN27: 41.64 | BO27: 40.24 | BP27: 40.24 | BQ27: 40.24 | BR27: 40.24 | BS27: 40.24 | BT27: 40.24 | BU27: 40.24 | BV27: 40.24 | BW27: 41.21 | BX27: 41.21 | BY27: 41.21 | BZ27: 40.24 | CA27: 40.24 | CB27: 40.24 | CC27: 42.18 | CD27: 42.18 | CE27: 42.18 | CF27: 44.11 | CG27: 44.11 | CH27: 44.11 | CI27: 42.17 | CJ27: 45.57 | CK27: 45.57 | CL27: 45.81 | CM27: 45.81 | CN27: 45.81 | CO27: 45.81 | CP27: 43.87 | CQ27: 43.87 | CR27: 43.87 | CS27: 43.87 | CT27: 43.87 | CU27: 41.2 | CV27: 41.2 | CW27: 41.2 | CX27: 41.2 | CY27: 38.29 | CZ27: 38.29 | DA27: 38.29 | DB27: 38.29 | DC27: 38.29 | DD27: 38.29 | DE27: 38.29 | DF27: 38.29 | DG27: 38.29 | DH27: 38.29 | DI27: 38.29 | DJ27: 36.35 | DK27: 36.35 | DL27: 36.35 | DM27: 36.35 | DN27: 36.35 | DO27: 36.35 | DP27: 36.35 | DQ27: 36.35 | DR27: 36.35 | DS27: 36.35 | DT27: 38.77 | DU27: 38.77 | DV27: 38.77 | DW27: 38.77 | DX27: 38.77 | DY27: 38.77 | DZ27: 40.71 | EA27: 40.71 | EB27: 40.71 | EC27: 40.71 | ED27: 40.71 | EE27: 40.71 | EF27: 40.71 | EG27: 40.71 | EH27: 40.71 | EI27: 40.71 | EJ27: 37.85 | EK27: 37.87 | EL27: 37.87 | EM27: 37.87 | EN27: 37.87 | EO27: 37.87 | EP27: 37.87 | EQ27: 37.87 | ER27: 37.87 | ES27: 37.87 | ET27: 38.84 | EU27: 38.84 | EV27: 38.84 | EW27: 38.84 | EX27: 39.33 | EY27: 39.33 | EZ27: 41.27 | FA27: 41.27 | FB27: 41.27 | FC27: 39.33 | FD27: 39.33 | FE27: 39.33 | FF27: 38.35 | FG27: 37.87 | FH27: 37.87 | FI27: 37.87 | FJ27: 37.87 | FK27: 37.87 | FL27: 37.87 | FM27: 37.87 | FN27: 37.87 | FO27: 39.32 | FP27: 39.32
B28: DOC Kaas | C28: Netherlands | AA28: 22.97 | AB28: 21.72 | AC28: 21.72 | AD28: 19.43 | AE28: 18.61 | AF28: 19.62 | AG28: 19.55 | AH28: 19.55 | AI28: 20.75 | AJ28: 24.17 | AK28: 27.01 | AL28: 27.7 | AM28: 26.79 | AN28: 25.84 | AO28: 25.84 | AP28: 26.53 | AQ28: 28.36 | AR28: 30.09 | AS28: 30.77 | AT28: 31.75 | AU28: 32.07 | AV28: 32.98 | AW28: 32.98 | AX28: 32.98 | AY28: 32.98 | AZ28: 33.46 | BA28: 33.92 | BB28: 34.63 | BC28: 35.11 | BD28: 35.11 | BE28: 35.11 | BF28: 35.11 | BG28: 35.11 | BH28: 35.83 | BI28: 35.83 | BJ28: 35.83 | BK28: 33.7 | BL28: 33.01 | BM28: 32.05 | BN28: 31.09 | BO28: 30.14 | BP28: 29.19 | BQ28: 29.19 | BR28: 29.19 | BS28: 30.62 | BT28: 32.27 | BU28: 33.23 | BV28: 34.17 | BW28: 33.23 | BX28: 32.52 | BY28: 32.52 | BZ28: 33.23 | CA28: 35.49 | CB28: 35.79 | CC28: 35.79 | CD28: 36.75 | CE28: 38.65 | CF28: 39.83 | CG28: 41.54 | CH28: 42.8 | CI28: 41.54 | CJ28: 41.54 | CK28: 39.16 | CL28: 37.73 | CM28: 35.38 | CN28: 35.38 | CO28: 35.38 | CP28: 35.38 | CQ28: 32.05 | CR28: 30.65 | CS28: 28.71 | CT28: 24.86 | CU28: 26.99 | CV28: 29.03 | CW28: 29.03 | CX28: 29.51 | CY28: 28.59 | CZ28: 25.62 | DA28: 24.67 | DB28: 24.19 | DC28: 24.19 | DD28: 24.19 | DE28: 25.18 | DF28: 26.17 | DG28: 25.16 | DH28: 25.16 | DI28: 24.19 | DJ28: 23.34 | DK28: 21.25 | DL28: 20.25 | DM28: 20.25 | DN28: 20.25 | DO28: 22.46 | DP28: 25.48 | DQ28: 29.51 | DR28: 30.51
B29: Campina | C29: Netherlands | D29: 26.07 | E29: 25.17 | F29: 25.59 | G29: 25.59 | H29: 26.34 | I29: 30.28 | J29: 36.39 | K29: 40.32 | L29: 40.32 | M29: 42.25 | N29: 40.65 | O29: 38.23 | P29: 37.85 | Q29: 35.23 | R29: 32.9 | S29: 32.9 | T29: 31.91 | U29: 32.81 | V29: 36.44 | W29: 35.8 | X29: 34.8 | Y29: 32.84 | Z29: 30.26 | AA29: 27.18 | AB29: 25.95 | AC29: 21.44 | AD29: 21.45 | AE29: 21.45 | AF29: 20.46 | AG29: 22.02 | AH29: 25.66 | AI29: 26.64 | AJ29: 28.58 | AK29: 31.66 | AL29: 31.9 | AM29: 28.15 | AN29: 26.74 | AO29: 23.98 | AP29: 25.19 | AQ29: 27.37 | AR29: 30.23 | AS29: 31.9 | AT29: 35.54 | AU29: 35.5 | AV29: 36.31 | AW29: 37.29 | AX29: 34.56 | AY29: 34.16 | AZ29: 34.17 | BA29: 32.17 | BB29: 32.14 | BC29: 34.13 | BD29: 34.22 | BE29: 36.52 | BF29: 38.22 | BG29: 37.19 | BH29: 37.91 | BI29: 38.17 | BJ29: 35.92 | BK29: 35.42 | BL29: 34.7 | BM29: 30.96 | BN29: 30.51 | BO29: 29.56 | BP29: 28.92 | BQ29: 31.23 | BR29: 33.71 | BS29: 33.68 | BT29: 34.27 | BU29: 36.47 | BV29: 35.78 | BW29: 34.65 | BX29: 33.96 | BY29: 31.2 | BZ29: 33.64 | CA29: 36.08 | CB29: 36.54 | CC29: 38.86 | CD29: 41.32 | CE29: 42.78 | CF29: 43.43 | CG29: 45.12 | CH29: 42.65 | CI29: 42.01 | CJ29: 42.01 | CK29: 41.33 | CL29: 40.13 | CM29: 39.15 | CN29: 40.77 | CO29: 38.42 | CP29: 38.66 | CQ29: 36.96 | CR29: 35.99 | CS29: 33.56 | CT29: 29.92 | CU29: 29.43 | CV29: 30.63 | CW29: 33.06 | CX29: 32.33 | CY29: 31.11 | CZ29: 29.66 | DA29: 29.17 | DB29: 27.71 | DC29: 27.71 | DD29: 28.2 | DE29: 28.93 | DF29: 29.17 | DG29: 28.44 | DH29: 28.42 | DI29: 27.69 | DJ29: 26.67 | DK29: 24.24 | DL29: 24.24 | DM29: 24.24 | DN29: 24.24 | DO29: 25.46 | DP29: 28.37 | DQ29: 32.02 | DR29: 36.39 | DS29: 33.56 | DT29: 34.05 | DU29: 35.02 | DV29: 35.02 | DW29: 35.02 | DX29: 35.75 | DY29: 36.24 | DZ29: 37.45 | EA29: 39.39 | EB29: 40.61 | EC29: 40.61 | ED29: 40.36 | EE29: 36.48 | EF29: 35.09 | EG29: 34.85 | EH29: 33.87 | EI29: 33.39 | EJ29: 33.75 | EK29: 35.21 | EL29: 35.21 | EM29: 36.42 | EN29: 37.39 | EO29: 36.67 | EP29: 36.67 | EQ29: 35.72 | ER29: 35.97 | ES29: 35.97 | ET29: 35.48 | EU29: 34.75 | EV29: 35.24 | EW29: 34.51 | EX29: 34.51 | EY29: 34.51 | EZ29: 34.27 | FA29: 35 | FB29: 35.88 | FC29: 34.63 | FD29: 35.32 | FE29: 35.08 | FF29: 33.91 | FG29: 32 | FH29: 31.52 | FI29: 32 | FJ29: 32.95 | FK29: 32.72 | FL29: 33.19 | FM29: 33.19 | FN29: 34.09 | FO29: 33.44 | FP29: 34.16
B30: Friesland Coberco Dairy Foods | C30: Netherlands | D30: 26.75 | E30: 24.45 | F30: 24.68 | G30: 24.68 | H30: 25.83 | I30: 26.75 | J30: 34.97 | K30: 38.64 | L30: 44.13 | M30: 44.13 | N30: 40.5 | O30: 38.23 | P30: 36.31 | Q30: 34.01 | R30: 34.52 | S30: 32.65 | T30: 29.89 | U30: 29.85 | V30: 35.85 | W30: 35.4 | X30: 35.47 | Y30: 35.48 | Z30: 31.8
B31: Royal A-ware | C31: Netherlands (New) | EC31: 41.86 | ED31: 40.41 | EE31: 36.29 | EF31: 34.35 | EG31: 33.86 | EH31: 32.89 | EI31: 32.01 | EJ31: 33.58 | EK31: 34.53 | EL31: 34.63 | EM31: 35.2 | EN31: 35.2 | EO31: 33.73 | EP31: 33.67
B32: Arla Foods Sweden | C32: Sweden | D32: 27.7 | E32: 27.37 | F32: 27.54 | G32: 27.65 | H32: 27.27 | I32: 27.71 | J32: 28.95 | K32: 29.93 | L32: 34.82 | M32: 37.25 | N32: 37.14
DG33: †
B34: Average **** | D34: 28.04 | E34: 26.93 | F34: 26.45 | G34: 26.88 | H34: 27.98 | I34: 30.66 | J34: 33.55 | K34: 35.29 | L34: 38.67 | M34: 39.31 | N34: 38.33 | O34: 38.62 | P34: 37.87 | Q34: 36.37 | R34: 32.8 | S34: 32.9 | T34: 32.57 | U34: 34.09 | V34: 35.71 | W34: 35.58 | X34: 34.61 | Y34: 33.56 | Z34: 31.49 | AA34: 29.59 | AB34: 28.84 | AC34: 26.57 | AD34: 23.74 | AE34: 24.1 | AF34: 24.7 | AG34: 25.51 | AH34: 26.27 | AI34: 26.74 | AJ34: 27.06 | AK34: 27.93 | AL34: 27.75 | AM34: 28.51 | AN34: 28 | AO34: 27.32 | AP34: 27.69 | AQ34: 28.61 | AR34: 30.23 | AS34: 31.78 | AT34: 32.67 | AU34: 33.05 | AV34: 32.98 | AW34: 33.23 | AX34: 32.29 | AY34: 32.85 | AZ34: 33.59 | BA34: 33.16 | BB34: 32.66 | BC34: 33.59 | BD34: 34.63 | BE34: 35.58 | BF34: 35.89 | BG34: 36.16 | BH34: 35.48 | BI34: 35.59 | BJ34: 34.59 | BK34: 34.71 | BL34: 34.56 | BM34: 33.71 | BN34: 32.18 | BO34: 31.38 | BP34: 32.09 | BQ34: 32.52 | BR34: 32.72 | BS34: 33.3 | BT34: 33.48 | BU34: 34.7 | BV34: 34.24 | BW34: 34.63 | BX34: 34.74 | BY34: 34.41 | BZ34: 34.16 | CA34: 35.33 | CB34: 36.16 | CC34: 37.82 | CD34: 38.79 | CE34: 39.65 | CF34: 39.86 | CG34: 40.55 | CH34: 39.89 | CI34: 40.35 | CJ34: 40.81 | CK34: 39.98 | CL34: 39.09 | CM34: 38.41 | CN34: 38.99 | CO34: 38.65 | CP34: 38.5 | CQ34: 37.47 | CR34: 35.76 | CS34: 34.1 | CT34: 32.95 | CU34: 32.13 | CV34: 31.88 | CW34: 31.76 | CX34: 31.44 | CY34: 30.83 | CZ34: 30.64 | DA34: 30.84 | DB34: 30.91 | DC34: 30.32 | DD34: 30.03 | DE34: 29.74 | DF34: 29.77 | DG34: 28.86 | DH34: 28.62 | DI34: 27.47 | DJ34: 26.29 | DK34: 25.35 | DL34: 25.14 | DM34: 25.39 | DN34: 26.19 | DO34: 27.36 | DP34: 29.13 | DQ34: 30.86 | DR34: 32.09 | DS34: 32.94 | DT34: 33.44 | DU34: 33.23 | DV34: 33.03 | DW34: 33.28 | DX34: 33.69 | DY34: 35.19 | DZ34: 36.03 | EA34: 36.72 | EB34: 36.86 | EC34: 36.84 | ED34: 36.64 | EE34: 35.44 | EF34: 34.39 | EG34: 33.58 | EH34: 32.51 | EI34: 32.1 | EJ34: 32.71 | EK34: 33.96 | EL34: 34.37 | EM34: 34.69 | EN34: 34.82 | EO34: 34.66 | EP34: 34.29 | EQ34: 33.85 | ER34: 33.82 | ES34: 33.52 | ET34: 33.21 | EU34: 33.21 | EV34: 33.29 | EW34: 33.43 | EX34: 33.36 | EY34: 33.56 | EZ34: 33.51 | FA34: 33.73 | FB34: 33.99 | FC34: 33.89 | FD34: 34.23 | FE34: 33.26 | FF34: 32.47 | FG34: 32.2 | FH34: 32.24 | FI34: 32.51 | FJ34: 32.71 | FK34: 32.99 | FL34: 33.26 | FM34: 33.37 | FN34: 33.53 | FO34: 33.77 | FP34: 33.98
B36: Fonterra* | C36: New Zealand | D36: 16.74 | E36: 16.66 | F36: 17.99 | G36: 17.95 | H36: 23.72 | I36: 27.89 | J36: 25.92 | K36: 25.13 | L36: 25.98 | M36: 27.31 | N36: 27.73 | O36: 27.55 | P36: 28.35 | Q36: 28.69 | R36: 27.83 | S36: 30.03 | T36: 29.43 | U36: 25.49 | V36: 23.78 | W36: 23.57 | X36: 20.84 | Y36: 20.24 | Z36: 16.1 | AA36: 16.09 | AB36: 15.61 | AC36: 16.12 | AD36: 17.12 | AE36: 17.46 | AF36: 15.77 | AG36: 15.82 | AH36: 18.37 | AI36: 18.75 | AJ36: 22.93 | AK36: 22.49 | AL36: 22.58 | AM36: 23.6 | AN36: 23.64 | AO36: 25.61 | AP36: 26.26 | AQ36: 26.83 | AR36: 30.14 | AS36: 29.32 | AT36: 29.09 | AU36: 29.21 | AV36: 29.71 | AW36: 30.92 | AX36: 31.12 | AY36: 33.89 | AZ36: 32.97 | BA36: 31.3 | BB36: 32.26 | BC36: 32.8 | BD36: 30.42 | BE36: 31.82 | BF36: 31.39 | BG36: 29.71 | BH36: 28.98 | BI36: 29.45 | BJ36: 30.32 | BK36: 32.12 | BL36: 31.98 | BM36: 31.47 | BN36: 30.07 | BO36: 29.3 | BP36: 27.68 | BQ36: 27.47 | BR36: 27.66 | BS36: 26.91 | BT36: 26.76 | BU36: 28.23 | BV36: 28 | BW36: 27.85 | BX36: 29.21 | BY36: 29.74 | BZ36: 30.33 | CA36: 29.51 | CB36: 34.18 | CC36: 37.24 | CD36: 38.97 | CE36: 39.96 | CF36: 40.09 | CG36: 39.1 | CH36: 38.31 | CI36: 40.4 | CJ36: 40.41 | CK36: 41.04 | CL36: 40.24 | CM36: 40.46 | CN36: 30.01 | CO36: 30.37 | CP36: 26.97 | CQ36: 26.86 | CR36: 26.45 | CS36: 23.86 | CT36: 23.94 | CU36: 24.98 | CV36: 24.69 | CW36: 25.93 | CX36: 24.86 | CY36: 23.39 | CZ36: 24.87 | DA36: 19.76 | DB36: 22.58 | DC36: 21.67 | DD36: 23.08 | DE36: 23.68 | DF36: 24.03 | DG36: 21.22 | DH36: 19.99 | DI36: 20.29 | DJ36: 20.32 | DK36: 20.11 | DL36: 22.86 | DM36: 25.96 | DN36: 28.46 | DO36: 28.76 | DP36: 32.31 | DQ36: 32.96 | DR36: 33.23 | DS36: 33.36 | DT36: 33.53 | DU36: 32.38 | DV36: 32.84 | DW36: 31.78 | DX36: 34.23 | DY36: 33.98 | DZ36: 34.08 | EA36: 33.54 | EB36: 33 | EC36: 30.77 | ED36: 30.85 | EE36: 31.21 | EF36: 30.82 | EG36: 30.62 | EH36: 31.06 | EI36: 30.97 | EJ36: 31.29 | EK36: 31.34 | EL36: 30.94 | EM36: 28.7 | EN36: 27.87 | EO36: 29.22 | EP36: 29.4 | EQ36: 29.99 | ER36: 30.44 | ES36: 30.56 | ET36: 29.43 | EU36: 28.85 | EV36: 28.75 | EW36: 29.31 | EX36: 28.44 | EY36: 29.36 | EZ36: 29.17 | FA36: 31.69 | FB36: 33.8 | FC36: 33.91 | FD36: 31.84 | FE36: 31.19 | FF36: 31.06 | FG36: 31.44 | FH36: 28.71 | FI36: 28.82 | FJ36: 27.13 | FK36: 28.77 | FL36: 29.14 | FM36: 30.86 | FN36: 31 | FO36: 32.33 | FP36: 34.58
B37: USA** | C37: USA | D37: 26.56 | E37: 27.82 | F37: 29.03 | G37: 31.8 | H37: 36.66 | I37: 37.97 | J37: 35.59 | K37: 35.37 | L37: 32.24 | M37: 32.06 | N37: 34.58 | O37: 32.11 | P37: 28.41 | Q37: 28.53 | R37: 26.28 | S37: 28.85 | T37: 32.08 | U37: 28.63 | V37: 28.73 | W37: 28.31 | X37: 31.98 | Y37: 30.47 | Z37: 28.12 | AA37: 20.28 | AB37: 18.26 | AC37: 20 | AD37: 20.42 | AE37: 18.11 | AF37: 17.82 | AG37: 17.7 | AH37: 19.55 | AI37: 20.62 | AJ37: 21.41 | AK37: 23.39 | AL37: 25.4 | AM37: 25.1 | AN37: 25.79 | AO37: 23.46 | AP37: 24.03 | AQ37: 26.61 | AR37: 27.87 | AS37: 26.97 | AT37: 29.42 | AU37: 31.36 | AV37: 32.15 | AW37: 28.45 | AX37: 26.14 | AY37: 25.41 | AZ37: 31.21 | BA37: 34.47 | BB37: 29.13 | BC37: 28.8 | BD37: 33.08 | BE37: 37.09 | BF37: 37.37 | BG37: 34.32 | BH37: 32.5 | BI37: 34.67 | BJ37: 34.95 | BK37: 32.45 | BL37: 29.81 | BM37: 29.24 | BN37: 29.41 | BO37: 29.23 | BP37: 30.71 | BQ37: 33.44 | BR37: 35.31 | BS37: 36.51 | BT37: 39.96 | BU37: 39.95 | BV37: 34.89 | BW37: 33.42 | BX37: 31.7 | BY37: 32.2 | BZ37: 33.33 | CA37: 35.13 | CB37: 33.56 | CC37: 32.61 | CD37: 32.97 | CE37: 32.87 | CF37: 32.82 | CG37: 34.2 | CH37: 33.99 | CI37: 38.06 | CJ37: 41.93 | CK37: 41.39 | CL37: 43.14 | CM37: 40.49 | CN37: 38.88 | CO37: 39.58 | CP37: 41.54 | CQ37: 47.53 | CR37: 46.63 | CS37: 43.35 | CT37: 35.8 | CU37: 34.28 | CV37: 33.78 | CW37: 35.64 | CX37: 36.45 | CY37: 36.22 | CZ37: 37.21 | DA37: 37.13 | DB37: 36.74 | DC37: 35.97 | DD37: 35.29 | DE37: 36.8 | DF37: 34.21 | DG37: 32.16 | DH37: 31.72 | DI37: 31.41 | DJ37: 30.55 | DK37: 28.83 | DL37: 30.11 | DM37: 35.05 | DN37: 38.05 | DO37: 36.77 | DP37: 33.74 | DQ37: 38.78 | DR37: 41.34 | DS37: 39.77 | DT37: 34.01 | DU37: 37.17 | DV37: 35.67 | DW37: 35.4 | DX37: 36.97 | DY37: 34.25 | DZ37: 35.71 | EA37: 34.86 | EB37: 35.9 | EC37: 36.28 | ED37: 33.07 | EE37: 29.26 | EF37: 27.69 | EG37: 29.35 | EH37: 30.05 | EI37: 32.73 | EJ37: 33.19 | EK37: 30.74 | EL37: 32.91 | EM37: 34.85 | EN37: 34.2 | EO37: 32.22 | EP37: 30.72 | EQ37: 31.02 | ER37: 31.11 | ES37: 33.72 | ET37: 35.89 | EU37: 37 | EV37: 36.49 | EW37: 39.49 | EX37: 39.9 | EY37: 41.74 | EZ37: 42.39 | FA37: 46.12 | FB37: 43.41 | FC37: 38.39 | FD37: 38.81 | FE37: 36.57 | FF37: 29.75 | FG37: 27.64 | FH37: 46.09 | FI37: 52.67 | FJ37: 41.18 | FK37: 34.48 | FL37: 45.06 | FM37: 48.22 | FN37: 31.9 | FO37: 32.5 | FP37: 31.98
B38: Emmi A.G. | C38: Switzerland | BR38: 50.8 | BS38: 50.38 | BT38: 50.01 | BU38: 47.09 | BV38: 46.99 | BW38: 46.05 | BX38: 44.69 | BY38: 43.92 | BZ38: 44.93 | CA38: 43.36 | CB38: 43.7 | CC38: 52.83 | CD38: 55.88 | CE38: 55.4 | CF38: 54.38 | CG38: 51.57 | CH38: 52.12 | CI38: 52.74 | CJ38: 50.06 | CK38: 50.25 | CL38: 49.4 | CM38: 48.71 | CN38: 51.59 | CO38: 54.01 | CP38: 53.97 | CQ38: 53.33 | CR38: 51.68 | CS38: 48.93 | CT38: 48.82 | CU38: 51.62 | CV38: 52.47 | CW38: 48.66 | CX38: 50.51 | CY38: 49.61 | CZ38: 53.14 | DA38: 56.91 | DB38: 55.26 | DC38: 54.03 | DD38: 54.41 | DE38: 51.06 | DF38: 51.61 | DG38: 50.06 | DH38: 47.65 | DI38: 45.78 | DJ38: 42.64 | DK38: 42.46 | DL38: 46.98 | DM38: 49.97 | DN38: 50.09 | DO38: 50.31 | DP38: 50.67 | DQ38: 47.68 | DR38: 47.81 | DS38: 49.19 | DT38: 43.7 | DU38: 43.41 | DV38: 42.98 | DW38: 43.61 | DX38: 47.44 | DY38: 53.35 | DZ38: 51.62 | EA38: 51.33 | EB38: 52.61 | EC38: 49.2 | ED38: 49.95 | EE38: 48.13 | EF38: 45.48 | EG38: 44.92 | EH38: 40.39 | EI38: 43.68 | EJ38: 48.32 | EK38: 51.79 | EL38: 51.54 | EM38: 52.96 | EN38: 52.94 | EO38: 49.37 | EP38: 49.82 | EQ38: 50.37 | ER38: 46.93 | ES38: 47.36 | ET38: 47.38 | EU38: 47.33 | EV38: 51.54 | EW38: 55.44 | EX38: 56.14 | EY38: 56.2 | EZ38: 55.89 | FA38: 52.78 | FB38: 53.43 | FC38: 54.59 | FD38: 51.47 | FE38: 51.78 | FF38: 50.46 | FG38: 49.1 | FH38: 51.8 | FI38: 55.37 | FJ38: 55.11 | FK38: 54.92 | FL38: 55.77 | FM38: 52.53 | FN38: 52.23 | FO38: 51.72 | FP38: 48.18
B39: CAPSA Food | C39: Spain | FE39: 31.27 | FF39: 31.27 | FG39: 31.27 | FH39: 31.27 | FI39: 31.69 | FJ39: 31.69 | FK39: 31.69 | FL39: 31.69 | FM39: 31.69 | FN39: 31.69 | FO39: 31.69 | FP39: 31.83
B40: Difference: Arla UK to average | D40: =D21-D34 -> -2.8 | E40: -2.14 | F40: -1.41 | G40: -1.92 | H40: -2.23 | I40: -2.56 | J40: -2.72 | K40: -0.92 | L40: -0.82 | M40: -2.13 | N40: -1.76
B41: Difference: First Milk to average | D41: =D22-D34 -> -3.31 | E41: =E22-E34 -> -3.17 | F41: -3.97 | G41: -5.08 | H41: -5.67 | I41: -4.75 | J41: -6.59 | K41: =K22-K34 -> -4.66 | L41: -4.51 | M41: -2.88 | N41: -3.84 | O41: -5.9 | P41: -5.29 | Q41: -5.5 | R41: -4.49 | S41: =S22-S34 -> -5.38 | T41: -3.08 | U41: -3.24 | V41: -3.07 | W41: -1.98 | X41: -0.44 | Y41: =Y22-Y34 -> -1.13 | Z41: -2.89 | AA41: -3.21 | AB41: -2.4 | AC41: -1.62 | AD41: -0.89 | AE41: =AE22-AE34 -> -2.74 | AF41: -1.09 | AG41: -0.89 | AH41: -1.33 | AI41: -1.85 | AJ41: -2.71 | AK41: =AK22-AK34 -> -3.85 | AL41: -4.57 | AM41: -5.26 | AN41: -4.29 | AO41: -4.27 | AP41: -5.72 | AQ41: =AQ22-AQ34 -> -6.68 | AR41: -5.4 | AS41: -5.65 | AT41: -5.4 | AU41: -4.68 | AV41: -4.27 | AW41: -5.17 | AX41: -5.02 | AY41: -5.98 | AZ41: =AZ22-AZ34 -> -5.21 | BA41: -6.02 | BB41: -7.02 | BC41: -8.23 | BD41: -7.81 | BE41: -6.73 | BF41: -6.22 | BG41: -5.1 | BH41: -3.02 | BI41: -2.78 | BJ41: =BJ22-BJ34 -> -2.6 | BK41: -2.81 | BL41: -2.85 | BM41: -2.61 | BN41: -2.41 | BO41: -2.15 | BP41: -0.91 | BQ41: -0.29 | BR41: =BR22-BR34 -> -0.08 | BS41: 0.3 | BT41: -0.15 | BU41: 0.02 | BV41: -0.4 | BW41: -1.54 | BX41: =BX22-BX34 -> -2.81 | BY41: -3.08 | BZ41: -3.44 | CA41: -5.55 | CB41: -4.55 | CC41: -4.21 | CD41: =CD22-CD34 -> -3.94 | CE41: -2.59 | CF41: -4.45 | CG41: -3.57 | CH41: -2.22 | CI41: -2.26 | CJ41: =CJ22-CJ34 -> -2.63 | CK41: -2.1 | CL41: -0.31 | CM41: 0.83 | CN41: 0.8 | CO41: -0.4 | CP41: =CP22-CP34 -> -2.02 | CQ41: -1.36 | CR41: -3.36 | CS41: -2.14 | CT41: -3.23 | CU41: -3.02 | CV41: =CV22-CV34 -> -3.55 | CW41: -2.77 | CX41: -3.33 | CY41: -2.99 | CZ41: -2.5 | DA41: -3.56 | DB41: =DB22-DB34 -> -3.91 | DC41: =DC22-DC34 -> -5.06 | DD41: =DD22-DD34 -> -1.39 | DE41: =DE22-DE34 -> -1.34 | DF41: =DF22-DF34 -> -2.72 | DG41: na | DH41: na | DI41: na | DJ41: na | DK41: na | DL41: na | DM41: na | DN41: na | DO41: na | DP41: na | DQ41: na | DR41: na | DS41: na | DT41: na | DU41: na
B42: Difference: Saputo Dairy UK to average | I42: =I23-I34 -> -2.49 | J42: -4.08 | K42: -4 | L42: -0.61 | M42: -0.94 | N42: -1.27 | O42: =O23-O34 -> -4.86 | P42: -4.25 | Q42: -3.8 | R42: -3.83 | S42: -3.18 | T42: -2.83 | U42: =U23-U34 -> -1.34 | V42: -2.94 | W42: 0.02 | X42: 2.65 | Y42: 1.79 | Z42: 0.36 | AA42: =AA23-AA34 -> 0.23 | AB42: 0.87 | AC42: 2.08 | AD42: 1.77 | AE42: 0.97 | AF42: 1.48 | AG42: =AG23-AG34 -> 2.49 | AH42: 1.66 | AI42: 1.95 | AJ42: 1.39 | AK42: 1.05 | AL42: 0.65 | AM42: =AM23-AM34 -> -1.22 | AN42: -0.5 | AO42: -0.59 | AP42: -2.64 | AQ42: -3.33 | AR42: -3.75 | AS42: -1.89 | AT42: -2.4 | AU42: -1.56 | AV42: -0.19 | AW42: -1.16 | AX42: -0.53 | AY42: -2.77 | AZ42: -2.32 | BA42: -2.62 | BB42: -4.89 | BC42: -4.28 | BD42: -5.36 | BE42: =BE23-BE34 -> -3.76 | BF42: -3.76 | BG42: -2.18 | BH42: -0.88 | BI42: 0.2 | BJ42: 1.22 | BK42: -0.16 | BL42: -0.22 | BM42: 0.73 | BN42: 0.12 | BO42: 1.34 | BP42: 0.87 | BQ42: 3 | BR42: =BR23-BR34 -> 2.78 | BS42: 3.62 | BT42: 4.58 | BU42: 3.49 | BV42: 2.94 | BW42: 1.36 | BX42: =BX23-BX34 -> -0.01 | BY42: 0.47 | BZ42: -1.5 | CA42: -2.9 | CB42: -2.42 | CC42: -1.35 | CD42: =CD23-CD34 -> -1.63 | CE42: 0 | CF42: 0.09 | CG42: 0.97 | CH42: 1.14 | CI42: -0.62 | CJ42: =CJ23-CJ34 -> -0.98 | CK42: -0.47 | CL42: -1.92 | CM42: -1.1 | CN42: -0.85 | CO42: 2.77 | CP42: =CP23-CP34 -> 2.72 | CQ42: 4.48 | CR42: 4.79 | CS42: 4.77 | CT42: 5.38 | CU42: 3.79 | CV42: =CV23-CV34 -> 3.75 | CW42: 2.69 | CX42: 0.09 | CY42: 0.36 | CZ42: 0.91 | DA42: 4.42 | DB42: =DB23-DB34 -> 4.33 | DC42: 6.09 | DD42: 6.96 | DE42: 6.57 | DF42: 4.1 | DG42: 1.79 | DH42: 1.2 | DI42: =DI23-DI34 -> 0.18 | DJ42: -2.8 | DK42: -1.73 | DL42: -1.84 | DM42: -0.89 | DN42: -2.1 | DO42: =DO23-DO34 -> -0.34 | DP42: -1.74 | DQ42: -2.12 | DR42: -1.04 | DS42: -1.93 | DT42: 0.15 | DU42: =DU23-DU34 -> -0.14 | DV42: -1.84 | DW42: -2.64 | DX42: -4.64 | DY42: -5.06 | DZ42: -6.73 | EA42: -4.16 | EB42: -1.43 | EC42: -0.76 | ED42: -0.34 | EE42: -0.81 | EF42: -0.89 | EG42: -0.86 | EH42: -3.28 | EI42: -4.43 | EJ42: -4.48 | EK42: -2.83 | EL42: -1.32 | EM42: 0.33 | EN42: 1.15 | EO42: 1.37 | EP42: 0.54 | EQ42: -0.21 | ER42: -0.77 | ES42: 0.08 | ET42: -2.28 | EU42: -2.92 | EV42: -3.38 | EW42: -1.37 | EX42: -1.86 | EY42: 0.44 | EZ42: 1.65 | FA42: 2.16 | FB42: 1.76 | FC42: 0.06 | FD42: -0.75 | FE42: -2.33 | FF42: -3.36 | FG42: -4.12 | FH42: -3.99 | FI42: -4.45 | FJ42: -4.52 | FK42: =FK23-FK34 -> -2.94 | FL42: -0.47 | FM42: -0.16 | FN42: -0.69 | FO42: -0.44 | FP42: 0.12
B44: MILK PRICES - Average milk price | M44: ⴕ
B45: Month | D45: 2007 | E45: 2008 | F45: 2009 | G45: 2010 | H45: 2011 | I45: 2012 | J45: 2013 | K45: 2014 | L45: 2015 | M45: 2016 | N45: 2017 | O45: 2018 | P45: 2019 | Q45: 2020 | R45: 2021
B46: Jan | E46: 38.62 | F46: 29.59 | G46: 28.51 | H46: 32.85 | I46: 34.71 | J46: 34.63 | K46: 40.35 | L46: 32.13 | M46: 28.86 | N46: 32.94 | O46: 35.44 | P46: 33.85 | Q46: 33.89 | R46: 33.77
B47: Feb | D47: =D34 -> 28.04 | E47: 37.87 | F47: 28.84 | G47: 28 | H47: 33.59 | I47: 34.56 | J47: 34.74 | K47: 40.81 | L47: 31.88 | M47: 28.62 | N47: 33.44 | O47: 34.39 | P47: 33.82 | Q47: 34.23 | R47: 33.98
B48: Mar | D48: =E34 -> 26.93 | E48: 36.37 | F48: 26.57 | G48: 27.32 | H48: 33.16 | I48: 33.71 | J48: 34.41 | K48: 39.98 | L48: 31.76 | M48: 27.47 | N48: 33.23 | O48: 33.58 | P48: 33.52 | Q48: 33.26
B49: Apr | D49: 26.45 | E49: 32.8 | F49: 23.74 | G49: 27.69 | H49: 32.66 | I49: 32.18 | J49: 34.16 | K49: 39.09 | L49: 31.44 | M49: 26.29 | N49: 33.03 | O49: 32.51 | P49: 33.21 | Q49: 32.47
B50: May | D50: 26.88 | E50: 32.9 | F50: 24.1 | G50: 28.61 | H50: 33.59 | I50: 31.38 | J50: 35.33 | K50: 38.41 | L50: 30.83 | M50: 25.35 | N50: 33.28 | O50: 32.1 | P50: 33.21 | Q50: 32.2
B51: Jun | D51: 27.98 | E51: 32.57 | F51: 24.7 | G51: 30.23 | H51: 34.63 | I51: 32.09 | J51: 36.16 | K51: 38.99 | L51: 30.64 | M51: 25.14 | N51: 33.69 | O51: 32.71 | P51: 33.29 | Q51: 32.24
B52: Jul | D52: 30.66 | E52: 34.09 | F52: 25.51 | G52: 31.78 | H52: 35.58 | I52: 32.52 | J52: 37.82 | K52: 38.65 | L52: 30.84 | M52: 25.39 | N52: 35.19 | O52: 33.96 | P52: 33.43 | Q52: 32.51
B53: Aug | D53: 33.55 | E53: 35.71 | F53: 26.27 | G53: 32.67 | H53: 35.89 | I53: 32.72 | J53: 38.79 | K53: 38.5 | L53: 30.91 | M53: 26.19 | N53: 36.03 | O53: 34.37 | P53: 33.36 | Q53: 32.71
B54: Sep | D54: 35.29 | E54: 35.58 | F54: 26.74 | G54: 33.05 | H54: 36.16 | I54: 33.3 | J54: 39.65 | K54: 37.47 | L54: 30.32 | M54: 27.36 | N54: 36.72 | O54: 34.69 | P54: 33.56 | Q54: 32.99
B55: Oct | D55: 38.67 | E55: 34.61 | F55: 27.06 | G55: 32.98 | H55: 35.48 | I55: 33.48 | J55: 39.86 | K55: 35.76 | L55: 30.03 | M55: 29.13 | N55: 36.86 | O55: 34.82 | P55: 33.51 | Q55: 33.26
B56: Nov | D56: 39.31 | E56: 33.56 | F56: 27.93 | G56: 33.23 | H56: 35.59 | I56: 34.7 | J56: 40.55 | K56: 34.1 | L56: 29.74 | M56: 30.86 | N56: 36.84 | O56: 34.66 | P56: 33.73 | Q56: 33.37
B57: Dec | D57: 38.33 | E57: 31.49 | F57: 27.75 | G57: 32.29 | H57: 34.59 | I57: 34.24 | J57: 39.89 | K57: 32.95 | L57: 29.77 | M57: 32.09 | N57: 36.64 | O57: 34.29 | P57: 33.99 | Q57: 33.53

Sheet 2001-2007
A2: Milk prices - EU League table
A3: Source: LTO
A4: Units: Euro/100kg
A5: Last updated: 19 December 2019
C8: Country | D8: 2001-01-01 | E8: 2001-02-01 | F8: 2001-03-01 | G8: 2001-04-01 | H8: 2001-05-01 | I8: 2001-06-01 | J8: 2001-07-01 | K8: 2001-08-01 | L8: 2001-09-01 | M8: 2001-10-01 | N8: 2001-11-01 | O8: 2001-12-01 | P8: 2002-01-01 | Q8: 2002-02-01 | R8: 2002-03-01 | S8: 2002-04-01 | T8: 2002-05-01 | U8: 2002-06-01 | V8: 2002-07-01 | W8: 2002-08-01 | X8: 2002-09-01 | Y8: 2002-10-01 | Z8: 2002-11-01 | AA8: 2002-12-01 | AB8: 2003-01-01 | AC8: 2003-02-01 | AD8: 2003-03-01 | AE8: 2003-04-01 | AF8: 2003-05-01 | AG8: 2003-06-01 | AH8: 2003-07-01 | AI8: 2003-08-01 | AJ8: 2003-09-01 | AK8: 2003-10-01 | AL8: 2003-11-01 | AM8: 2003-12-01 | AN8: 2004-01-01 | AO8: 2004-02-01 | AP8: 2004-03-01 | AQ8: 2004-04-01 | AR8: 2004-05-01 | AS8: 2004-06-01 | AT8: 2004-07-01 | AU8: 2004-08-01 | AV8: 2004-09-01 | AW8: 2004-10-01 | AX8: 2004-11-01 | AY8: 2004-12-01 | AZ8: 2005-01-01 | BA8: 2005-02-01 | BB8: 2005-03-01 | BC8: 2005-04-01 | BD8: 2005-05-01 | BE8: 2005-06-01 | BF8: 2005-07-01 | BG8: 2005-08-01 | BH8: 2005-09-01 | BI8: 2005-10-01 | BJ8: 2005-11-01 | BK8: 2005-12-01 | BL8: 2006-01-01 | BM8: 2006-02-01 | BN8: 2006-03-01 | BO8: 2006-04-01 | BP8: 2006-05-01 | BQ8: 2006-06-01 | BR8: 2006-07-01 | BS8: 2006-08-01 | BT8: 2006-09-01 | BU8: 2006-10-01 | BV8: 2006-11-01 | BW8: 2006-12-01 | BX8: 2007-01-01
B9: Belgomilk (Milcobel) | C9: Belgium | D9: 33.47719177 | E9: 32.17537893 | F9: 30.87356608 | G9: 29.57071208 | H9: 29.57071208 | I9: 29.57071208 | J9: 31.49845431 | K9: 32.80130831 | L9: 34.10312115 | M9: 34.75454815 | N9: 35.404934 | O9: 34.75454815 | P9: 32.40694561 | Q9: 30.30802061 | R9: 28.21663061 | S9: 26.63071061 | T9: 26.10589561 | U9: 26.10589561 | V9: 26.8456738 | W9: 28.9463588 | X9: 30.5225638 | Y9: 33.5054338 | Z9: 34.0310038 | AA9: 34.0310038 | AB9: 31.93417166 | AC9: 30.88914666 | AD9: 28.79800666 | AE9: 27.23051166 | AF9: 27.23051166 | AG9: 26.96885666 | AH9: 27.75298166 | AI9: 29.12666166 | AJ9: 30.10502166 | AK9: 31.15071666 | AL9: 31.15071666 | AM9: 31.15071666 | AN9: 30.88708952 | AO9: 30.10296452 | AP9: 28.79594952 | AQ9: 27.48935452 | AR9: 27.22845452 | AS9: 27.22845452 | AT9: 27.75 | AU9: 28.8 | AV9: 29.84 | AW9: 30.89 | AX9: 30.89 | AY9: 30.89 | AZ9: 30.12 | BA9: 29.07 | BB9: 28.29 | BC9: 26.98 | BD9: 26.98 | BE9: 26.98 | BF9: 26.98 | BG9: 28.03 | BH9: 28.55 | BI9: 29.6 | BJ9: 29.6 | BK9: 29.6 | BL9: 28.55 | BM9: 28.03 | BN9: 26.98 | BO9: 26.46 | BP9: 26.2 | BQ9: 26.2 | BR9: 26.46 | BS9: 27.24 | BT9: 28.15 | BU9: 28.67 | BV9: 28.93 | BW9: 28.93 | BX9: 29.03
B10: Humana Milch Union | C10: Germany | D10: 30.98148699 | E10: 30.98148699 | F10: 30.47515899 | G10: 30.47515899 | H10: 30.98148699 | I10: 31.99414299 | J10: 33.00679899 | K10: 34.52578299 | L10: 37.05742299 | M10: 37.05742299 | N10: 36.55109499 | O10: 34.52578299 | P10: 32.3487129 | Q10: 32.3487129 | R10: 31.35842164 | S10: 30.36813037 | T10: 29.37783911 | U10: 29.37783911 | V10: 29.37783911 | W10: 30.36813037 | X10: 31.35842164 | Y10: 32.3487129 | Z10: 33.33900416 | AA10: 31.35842164 | AB10: 30.36813037 | AC10: 29.87298474 | AD10: 29.37783911 | AE10: 28.38754785 | AF10: 27.89240222 | AG10: 27.89240222 | AH10: 28.38754785 | AI10: 29.37783911 | AJ10: 30.36813037 | AK10: 31.35842164 | AL10: 31.35842164 | AM10: 30.51667406 | AN10: 28.78366436 | AO10: 28.28851872 | AP10: 27.79337309 | AQ10: 26.80308183 | AR10: 26.80308183 | AS10: 26.80308183 | AT10: 26.8 | AU10: 28.78 | AV10: 29.28 | AW10: 30.76 | AX10: 31.26 | AY10: 28.54 | AZ10: 28.29 | BA10: 27.79 | BB10: 27.3 | BC10: 26.8 | BD10: 26.8 | BE10: 26.8 | BF10: 26.56 | BG10: 26.56 | BH10: 27.55 | BI10: 28.54 | BJ10: 29.03 | BK10: 26.56 | BL10: 27.55 | BM10: 26.56 | BN10: 26.56 | BO10: 26.38 | BP10: 26.38 | BQ10: 26.38 | BR10: 26.38 | BS10: 26.38 | BT10: 27.37 | BU10: 28.36 | BV10: 28.36 | BW10: 28.36 | BX10: 27.68
B11: Nordmilch | C11: Germany | D11: 31.44152215 | E11: 30.42886615 | F11: 29.66937415 | G11: 30.17570215 | H11: 31.69468615 | I11: 31.69468615 | J11: 33.46683415 | K11: 35.49214615 | L11: 36.50480215 | M11: 36.50480215 | N11: 35.49214615 | O11: 33.46683415 | P11: 30.25198336 | Q11: 29.26169209 | R11: 29.26169209 | S11: 28.76654646 | T11: 27.7762552 | U11: 27.7762552 | V11: 27.7762552 | W11: 28.27140083 | X11: 28.76654646 | Y11: 29.75683773 | Z11: 30.74712899 | AA11: 28.27140083 | AB11: 28.27140083 | AC11: 27.7762552 | AD11: 27.28110957 | AE11: 26.78596394 | AF11: 26.78596394 | AG11: 26.78596394 | AH11: 26.78596394 | AI11: 27.7762552 | AJ11: 27.7762552 | AK11: 28.76654646 | AL11: 28.76654646 | AM11: 26.78596394 | AN11: 26.66217753 | AO11: 26.66217753 | AP11: 26.66217753 | AQ11: 26.66217753 | AR11: 26.66217753 | AS11: 26.66217753 | AT11: 26.66 | AU11: 28.64 | AV11: 29.14 | AW11: 30.62 | AX11: 30.62 | AY11: 28.64 | AZ11: 27.65 | BA11: 26.66 | BB11: 26.66 | BC11: 25.67 | BD11: 25.67 | BE11: 26.66 | BF11: 27.65 | BG11: 28.15 | BH11: 28.64 | BI11: 29.14 | BJ11: 29.63 | BK11: 27.48 | BL11: 27.48 | BM11: 26.98 | BN11: 26.49 | BO11: 25.99 | BP11: 25.99 | BQ11: 25.99 | BR11: 25.99 | BS11: 27.48 | BT11: 27.97 | BU11: 28.96 | BV11: 28.96 | BW11: 25.5 | BX11: 26.84
B12: Arla Foods Denmark | C12: Denmark | D12: 30.66628238 | E12: 30.73500375 | F12: 30.66644672 | G12: 30.67137754 | H12: 30.67992805 | I12: 30.71063403 | J12: 30.74825631 | K12: 30.74838022 | L12: 30.75961885 | M12: 31.16157993 | N12: 31.12499848 | O12: 31.13256722 | P12: 31.16837573 | Q12: 31.18175767 | R12: 31.17084989 | S12: 31.16430889 | T12: 31.15693259 | U12: 31.16812414 | V12: 31.17882021 | W12: 31.19183316 | X12: 31.1923371 | Y12: 30.87160943 | Z12: 30.87958897 | AA12: 30.88328921 | AB12: 30.87197397 | AC12: 30.87355228 | AD12: 30.89429299 | AE12: 30.90053311 | AF12: 30.34384846 | AG12: 30.34347342 | AH12: 30.31008324 | AI12: 30.30906391 | AJ12: 30.33072913 | AK12: 29.32167347 | AL12: 29.29270007 | AM12: 29.27589418 | AN12: 29.25156576 | AO12: 29.23943633 | AP12: 29.24465585 | AQ12: 28.1765949 | AR12: 28.18481033 | AS12: 28.20421322 | AT12: 28.17 | AU12: 28.17 | AV12: 28.16 | AW12: 28.07 | AX12: 28.08 | AY12: 28.08 | AZ12: 28.06 | BA12: 28.05 | BB12: 28.04 | BC12: 27.77 | BD12: 27.79 | BE12: 27.79 | BF12: 27.74 | BG12: 27.73 | BH12: 27.74 | BI12: 27.72 | BJ12: 27.73 | BK12: 27.75 | BL12: 27.7 | BM12: 27.68 | BN12: 27.7 | BO12: 27.27 | BP12: 27.29 | BQ12: 27.3 | BR12: 27.28 | BS12: 27.27 | BT12: 27.28 | BU12: 27.3 | BV12: 27.3 | BW12: 27.3 | BX12: 27.63
B13: Hameenlinnan.O. | C13: Finland | D13: 34.31162588 | E13: 34.31386468 | F13: 31.38776299 | G13: 29.71369596 | H13: 29.72737971 | I13: 29.7354781 | J13: 31.36663699 | K13: 34.64406837 | L13: 35.9617987 | M13: 36.59330832 | N13: 35.95861977 | O13: 35.71625651 | P13: 34.81155179 | Q13: 33.18252246 | R13: 30.28508322 | S13: 30.27905054 | T13: 30.27640056 | U13: 30.27845441 | V13: 33.1787694 | W13: 35.1577607 | X13: 36.10906841 | Y13: 36.11364 | Z13: 36.1413999 | AA13: 36.11590872 | AB13: 33.67750183 | AC13: 33.67458037 | AD13: 30.75408518 | AE13: 30.7569257 | AF13: 30.78330337 | AG13: 30.77194638 | AH13: 33.69346808 | AI13: 35.65460092 | AJ13: 36.61866048 | AK13: 36.61748677 | AL13: 36.63056217 | AM13: 36.62642135 | AN13: 33.71366079 | AO13: 33.22914853 | AP13: 30.2856281 | AQ13: 30.3055781 | AR13: 30.30434037 | AS13: 31.27073866 | AT13: 35.19 | AU13: 36.14 | AV13: 36.63 | AW13: 36.63 | AX13: 37.11 | AY13: 35.16 | AZ13: 32.23 | BA13: 31.75 | BB13: 28.84 | BC13: 28.67 | BD13: 28.67 | BE13: 29.63 | BF13: 33.53 | BG13: 34.5 | BH13: 35.47 | BI13: 35.47 | BJ13: 35.47 | BK13: 33.55 | BL13: 32.06 | BM13: 31.57 | BN13: 28.66 | BO13: 28.66 | BP13: 28.65 | BQ13: 28.68 | BR13: 33.51 | BS13: 34.87 | BT13: 35.45 | BU13: 35.45 | BV13: 35.47 | BW13: 35.48 | BX13: 32.67
B14: Bongrain CLE | C14: France | D14: 33.75681537 | E14: 33.16478042 | F14: 32.23972581 | G14: 30.48582227 | H14: 30.67083319 | I14: 30.52282445 | J14: 32.12131882 | K14: 34.34144989 | L14: 34.34144989 | M14: 34.17864027 | N14: 33.58660532 | O14: 33.45160534 | P14: 33.06776369 | Q14: 32.47553068 | R14: 31.58718117 | S14: 29.81922 | T14: 29.81922 | U14: 29.96776369 | V14: 30.86485107 | W14: 32.9376666 | X14: 32.9376666 | Y14: 32.64057922 | Z14: 31.9007734 | AA14: 31.9007734 | AB14: 32.60902583 | AC14: 32.01679282 | AD14: 31.1284433 | AE14: 29.24786078 | AF14: 29.23572485 | AG14: 29.38426854 | AH14: 30.57747243 | AI14: 32.65028796 | AJ14: 32.65028796 | AK14: 32.38135592 | AL14: 31.6415501 | AM14: 31.6415501 | AN14: 31.55805495 | AO14: 31.0823268 | AP14: 30.19397728 | AQ14: 28.05805495 | AR14: 28.05805495 | AS14: 28.20659864 | AT14: 29.46 | AU14: 32.08 | AV14: 32.08 | AW14: 31.74 | AX14: 31 | AY14: 31 | AZ14: 31.12 | BA14: 30.64 | BB14: 29.75 | BC14: 27.63 | BD14: 27.59 | BE14: 27.73 | BF14: 28.4 | BG14: 31.05 | BH14: 31.25 | BI14: 30.69 | BJ14: 29.95 | BK14: 29.95 | BL14: 30.05 | BM14: 29.57 | BN14: 28.68 | BO14: 26.61 | BP14: 26.37 | BQ14: 26.57 | BR14: 27.51 | BS14: 30.13 | BT14: 30.29 | BU14: 29.78 | BV14: 29.04 | BW14: 29.04 | BX14: 30.49
B15: Danone | C15: France | D15: 33.08937255 | E15: 32.57134197 | F15: 31.23926333 | G15: 29.22634449 | H15: 29.22634449 | I15: 29.52236197 | J15: 33.48740893 | K15: 35.41152252 | L15: 35.41152252 | M15: 35.24871291 | N15: 35.24871291 | O15: 34.65667796 | P15: 32.57499458 | Q15: 32.05751885 | R15: 30.72450914 | S15: 28.51285866 | T15: 28.5133441 | U15: 28.80897516 | V15: 32.07460601 | W15: 33.99887785 | X15: 33.99887785 | Y15: 33.70179048 | Z15: 33.70179048 | AA15: 33.10955747 | AB15: 32.06590076 | AC15: 31.54842503 | AD15: 30.2163862 | AE15: 27.89114348 | AF15: 27.89114348 | AG15: 28.18725999 | AH15: 32.12803669 | AI15: 33.67366775 | AJ15: 33.67366775 | AK15: 33.40473571 | AL15: 33.40473571 | AM15: 32.8125027 | AN15: 31.02639153 | AO15: 30.62542065 | AP15: 29.29338182 | AQ15: 26.71279929 | AR15: 26.71279929 | AS15: 27.0089158 | AT15: 31 | AU15: 33.13 | AV15: 33.13 | AW15: 32.8 | AX15: 32.8 | AY15: 32.2 | AZ15: 30.62 | BA15: 30.21 | BB15: 28.88 | BC15: 26.32 | BD15: 26.22 | BE15: 26.52 | BF15: 30.66 | BG15: 32.3 | BH15: 32.5 | BI15: 31.94 | BJ15: 31.94 | BK15: 31.35 | BL15: 29.55 | BM15: 29.15 | BN15: 27.821 | BO15: 25.01 | BP15: 25.17 | BQ15: 25.47 | BR15: 30.2 | BS15: 32.33 | BT15: 32.52 | BU15: 32.02 | BV15: 32.02 | BW15: 31.45 | BX15: 31.03
B16: Lactalis | C16: France | D16: 34.19579079 | E16: 33.4557471 | F16: 31.6796397 | G16: 30.39196622 | H16: 30.39196622 | I16: 30.53997496 | J16: 32.58249554 | K16: 34.28417595 | L16: 34.28431837 | M16: 34.34379953 | N16: 34.34346491 | O16: 34.19149406 | P16: 33.38512177 | Q16: 32.64502419 | R16: 30.86830628 | S16: 29.97901401 | T16: 28.94045199 | U16: 29.60621628 | V16: 30.97096643 | W16: 32.72359832 | X16: 32.60950298 | Y16: 32.57636799 | Z16: 32.79479174 | AA16: 32.64721892 | AB16: 32.92394247 | AC16: 32.48511551 | AD16: 30.70841849 | AE16: 29.40549564 | AF16: 29.14336461 | AG16: 29.29093743 | AH16: 30.63753937 | AI16: 32.36763646 | AJ16: 32.36763646 | AK16: 32.32685908 | AL16: 32.5453035 | AM16: 32.39772674 | AN16: 32.35059072 | AO16: 31.5622412 | AP16: 29.78608549 | AQ16: 27.96565703 | AR16: 27.96479093 | AS16: 27.91908479 | AT16: 29.58 | AU16: 31.89 | AV16: 31.89 | AW16: 31.75 | AX16: 31.75 | AY16: 31.6 | AZ16: 31.48 | BA16: 30.66 | BB16: 28.6 | BC16: 27.25 | BD16: 27.3 | BE16: 27.25 | BF16: 28.58 | BG16: 30.97 | BH16: 31.28 | BI16: 30.72 | BJ16: 30.53 | BK16: 30.57 | BL16: 29.86 | BM16: 29.79 | BN16: 28.01 | BO16: 26.33 | BP16: 25.92 | BQ16: 26.3 | BR16: 28.54 | BS16: 29.93 | BT16: 30.05 | BU16: 29.69 | BV16: 29.88 | BW16: 29.38 | BX16: 30.61
B17: Sodiaal | C17: France | D17: 33.47354515 | E17: 33.17752767 | F17: 31.54943156 | G17: 28.54485418 | H17: 28.54485418 | I17: 30.32095903 | J17: 32.68909884 | K17: 36.38931728 | L17: 36.38931728 | M17: 35.79728233 | N17: 35.35325612 | O17: 33.72516 | P17: 33.07163592 | Q17: 32.7756165 | R17: 31.14752039 | S17: 27.94357767 | T17: 27.21542233 | U17: 28.99153883 | V17: 31.1056165 | W17: 34.80590777 | X17: 34.80590777 | Y17: 33.77930583 | Z17: 34.06299515 | AA17: 32.43493689 | AB17: 32.31920874 | AC17: 32.16882039 | AD17: 30.54076214 | AE17: 27.22416019 | AF17: 27.44746117 | AG17: 29.0002767 | AH17: 31.64348058 | AI17: 35.05250971 | AJ17: 35.05250971 | AK17: 34.0633835 | AL17: 33.32804369 | AM17: 31.69998544 | AN17: 31.34834971 | AO17: 31.31445713 | AP17: 29.56989421 | AQ17: 26.14357767 | AR17: 26.36687864 | AS17: 28.3371699 | AT17: 30.89 | AU17: 34.88 | AV17: 34.88 | AW17: 33.35 | AX17: 32.23 | AY17: 30.6 | AZ17: 30.08 | BA17: 30.05 | BB17: 28.3 | BC17: 24.37 | BD17: 25.14 | BE17: 27.21 | BF17: 28.85 | BG17: 32.93 | BH17: 33.08 | BI17: 31.33 | BJ17: 30.11 | BK17: 28.48 | BL17: 27.97 | BM17: 27.94 | BN17: 26.2 | BO17: 22.99 | BP17: 23.74 | BQ17: 25.81 | BR17: 27.9 | BS17: 31.99 | BT17: 31.75 | BU17: 30.43 | BV17: 28.87 | BW17: 27.25 | BX17: 28.36
B18: Express Milk/Arla Foods UK | C18: GB | D18: 26.91965441 | E18: 27.73094496 | F18: 27.90156572 | G18: 29.05067929 | H18: 28.32601242 | I18: 29.6412897 | J18: 31.74955354 | K18: 33.93861749 | L18: 32.57775846 | M18: 32.5322661 | N18: 32.50915427 | O18: 31.12279634 | P18: 30.85508702 | Q18: 31.10759191 | R18: 30.91430791 | S18: 25.95858585 | T18: 24.28840508 | U18: 24.73383501 | V18: 25.02236966 | W18: 28.17316648 | X18: 26.87819708 | Y18: 30.00332698 | Z18: 29.3628781 | AA18: 27.89403738 | AB18: 27.26417476 | AC18: 26.75895065 | AD18: 26.2640178 | AE18: 24.18079571 | AF18: 22.4501085 | AG18: 22.90030687 | AH18: 26.16434109 | AI18: 28.98119084 | AJ18: 27.68432183 | AK18: 27.62834177 | AL18: 28.05120637 | AM18: 26.57924168 | AN18: 26.94707923 | AO18: 27.55311956 | AP18: 27.79477754 | AQ18: 26.01311587 | AR18: 24.74356407 | AS18: 26.04212387 | AT18: 27.87 | AU18: 30.62 | AV18: 28.1 | AW18: 27.68 | AX18: 27.12 | AY18: 26.13 | AZ18: 26 | BA18: 26.35 | BB18: 27.29 | BC18: 25.81 | BD18: 24.78 | BE18: 26.35 | BF18: 27 | BG18: 29.9 | BH18: 28.31 | BI18: 28.14 | BJ18: 27.95 | BK18: 26.81 | BL18: 26.53 | BM18: 25.38 | BN18: 25.15 | BO18: 24 | BP18: 23.39 | BQ18: 23.34 | BR18: 24.8 | BS18: 28.07 | BT18: 26.05 | BU18: 26.8 | BV18: 26.46 | BW18: 24.7 | BX18: 25.41
B19: First Milk | C19: GB | D19: 26.32324301 | E19: 26.36650088 | F19: 26.5287266 | G19: 27.65117237 | H19: 26.27415852 | I19: 28.21333032 | J19: 32.07716012 | K19: 31.15402106 | L19: 30.55703773 | M19: 30.40476577 | N19: 30.1879766 | O19: 30.03372886 | P19: 28.03772277 | Q19: 27.63250137 | R19: 27.46080951 | S19: 23.81477951 | T19: 19.31355856 | U19: 19.5823214 | V19: 23.55488502 | W19: 25.93628919 | X19: 26.54791653 | Y19: 28.30690133 | Z19: 27.60911499 | AA19: 25.75645613 | AB19: 25.17486127 | AC19: 24.70835359 | AD19: 24.25134853 | AE19: 22.4288861 | AF19: 20.75538885 | AG19: 21.42404616 | AH19: 23.28886337 | AI19: 24.77567956 | AJ19: 25.68173585 | AK19: 26.33737847 | AL19: 26.70098431 | AM19: 25.65991038 | AN19: 25.6050845 | AO19: 26.18094334 | AP19: 25.83216013 | AQ19: 23.52093132 | AR19: 22.34342465 | AS19: 23.02868366 | AT19: 24.41 | AU19: 25.45 | AV19: 26.44 | AW19: 25.61 | AX19: 25.69 | AY19: 24.86 | AZ19: 24.38 | BA19: 24.71 | BB19: 24.18 | BC19: 22.89 | BD19: 21.91 | BE19: 22.7 | BF19: 23.44 | BG19: 25.01 | BH19: 26.2 | BI19: 25.99 | BJ19: 26.14 | BK19: 25.17 | BL19: 24.54 | BM19: 24.65 | BN19: 24.43 | BO19: 23.09 | BP19: 22.09 | BQ19: 22.28 | BR19: 23.61 | BS19: 25.46 | BT19: 25.28 | BU19: 25.37 | BV19: 25.55 | BW19: 24.77 | BX19: 24.89
B20: Glanbia | C20: Ireland | D20: 36.31335214 | E20: 34.49168822 | F20: 29.80740958 | G20: 29.80740958 | H20: 29.790151 | I20: 30.47741215 | J20: 30.47741215 | K20: 30.47741215 | L20: 30.47741215 | M20: 37.75783009 | N20: 37.90267923 | O20: 37.12003415 | P20: 34.94776309 | Q20: 33.12784573 | R20: 27.70776699 | S20: 27.68932039 | T20: 27.68932039 | U20: 27.68932039 | V20: 27.68932039 | W20: 27.68932039 | X20: 27.68932039 | Y20: 34.18663489 | Z20: 35.48982118 | AA20: 35.48982118 | AB20: 34.18663489 | AC20: 32.37148256 | AD20: 27.15048544 | AE20: 27.15048544 | AF20: 27.15048544 | AG20: 27.15048544 | AH20: 27.15048544 | AI20: 27.15048544 | AJ20: 27.15048544 | AK20: 33.64779994 | AL20: 34.95098623 | AM20: 34.95098623 | AN20: 33.64157646 | AO20: 31.82816278 | AP20: 27.15048544 | AQ20: 27.15048544 | AR20: 27.15048544 | AS20: 27.15048544 | AT20: 27.16 | AU20: 27.16 | AV20: 27.16 | AW20: 33.46 | AX20: 34.96 | AY20: 34.96 | AZ20: 27.16 | BA20: 27.16 | BB20: 26.23 | BC20: 26.23 | BD20: 26.23 | BE20: 26.23 | BF20: 26.23 | BG20: 26.23 | BH20: 26.23 | BI20: 26.23 | BJ20: 28.36 | BK20: 26.23 | BL20: 26.23 | BM20: 29.14 | BN20: 26.233 | BO20: 30.47 | BP20: 24.88 | BQ20: 24.88 | BR20: 24.88 | BS20: 23.6 | BT20: 25.18 | BU20: 31.96 | BV20: 33.32 | BW20: 33.32 | BX20: 31.88
B21: Golden Vale (South) | C21: Ireland | D21: 33.67458845 | E21: 33.49724478 | F21: 28.32702602 | G21: 29.42972943 | H21: 29.99131772 | I21: 29.99131772 | J21: 29.99131772 | K21: 29.99131772 | L21: 29.99131772 | M21: 29.83753005 | N21: 33.36393028 | O21: 32.79095295 | P21: 32.78463532 | Q21: 32.78463584 | R21: 28.72695961 | S21: 27.98205567 | T21: 27.98205567 | U21: 27.98205567 | V21: 27.98205567 | W21: 27.98205567 | X21: 27.98205567 | Y21: 27.98205567 | Z21: 28.00373221 | AA21: 28.00373221 | AB21: 28.00373221 | AC21: 28.00373221 | AD21: 27.98205567 | AE21: 27.98205567 | AF21: 27.98205567 | AG21: 27.98205567 | AH21: 27.98205567 | AI21: 27.98205567 | AJ21: 27.48605814 | AK21: 27.48605814 | AL21: 27.49876508 | AM21: 27.49876508 | AN21: 27.49876508 | AO21: 27.49876508 | AP21: 27.48605814 | AQ21: 27.48605814 | AR21: 27.48605814 | AS21: 27.48605814 | AT21: 27.49 | AU21: 27.49 | AV21: 27.49 | AW21: 27.5 | AX21: 27.5 | AY21: 27.18 | AZ21: 27.5 | BA21: 27.5 | BB21: 27.5 | BC21: 27.5 | BD21: 27.06 | BE21: 26.63 | BF21: 26.63 | BG21: 26.63 | BH21: 26.63 | BI21: 26.63 | BJ21: 26.63 | BK21: 26.63 | BL21: 26.63 | BM21: 26.63 | BN21: 26.63 | BO21: 26.63 | BP21: 26.63 | BQ21: 25.97 | BR21: 25.32 | BS21: 25.32 | BT21: 25.32 | BU21: 25.32 | BV21: 25.32 | BW21: 25.32 | BX21: 25.55
B22: Campina | C22: Netherlands | D22: 28.43257183 | E22: 26.66918191 | F22: 26.58863592 | G22: 26.78308074 | H22: 27.10662603 | I22: 28.15576589 | J22: 28.98799881 | K22: 32.5939633 | L22: 32.89096245 | M22: 32.89096245 | N22: 32.87099612 | O22: 32.61302207 | P22: 28.4330167 | Q22: 27.4310167 | R22: 27.0540167 | S22: 26.7865167 | T22: 26.4845167 | U22: 26.5265167 | V22: 26.6825167 | W22: 29.6510167 | X22: 29.8605167 | Y22: 30.6065167 | Z22: 31.2765167 | AA22: 31.5275167 | AB22: 26.93673099 | AC22: 25.79223099 | AD22: 25.79223099 | AE22: 25.79223099 | AF22: 26.41223099 | AG22: 26.41223099 | AH22: 27.32223099 | AI22: 30.95223099 | AJ22: 30.95223099 | AK22: 30.96023099 | AL22: 31.63023099 | AM22: 31.00223099 | AN22: 26.91173099 | AO22: 24.86173099 | AP22: 24.86173099 | AQ22: 24.86173099 | AR22: 24.86173099 | AS22: 24.86173099 | AT22: 25.77 | AU22: 29.4 | AV22: 29.67 | AW22: 30.2 | AX22: 30.81 | AY22: 30.33 | AZ22: 26.7 | BA22: 25.79 | BB22: 25.32 | BC22: 25.32 | BD22: 25.32 | BE22: 25.32 | BF22: 25.77 | BG22: 29.19 | BH22: 29.19 | BI22: 29.19 | BJ22: 29.19 | BK22: 29.19 | BL22: 25.6 | BM22: 25.6 | BN22: 24.7 | BO22: 24.24 | BP22: 24.24 | BQ22: 24.24 | BR22: 24.63 | BS22: 28.23 | BT22: 28.23 | BU22: 28.23 | BV22: 28.23 | BW22: 26.63 | BX22: 25.53
B23: Friesland Coberco Dairy Foods | C23: Netherlands | D23: 29.83672988 | E23: 29.87121717 | F23: 27.60231609 | G23: 27.80470207 | H23: 27.80470207 | I23: 29.02242128 | J23: 29.02786664 | K23: 36.34961043 | L23: 36.34961043 | M23: 37.61701857 | N23: 37.66670751 | O23: 34.03646578 | P23: 31.21815956 | Q23: 31.21815956 | R23: 27.98015956 | S23: 27.07565956 | T23: 27.07565956 | U23: 27.07565956 | V23: 27.07565956 | W23: 33.07565956 | X23: 33.07565956 | Y23: 32.13015956 | Z23: 32.13015956 | AA23: 28.43015956 | AB23: 28.33715956 | AC23: 28.33715956 | AD23: 26.03715956 | AE23: 26.03715956 | AF23: 26.03715956 | AG23: 26.03715956 | AH23: 26.03715956 | AI23: 32.03715956 | AJ23: 32.03715956 | AK23: 32.50765956 | AL23: 32.50765956 | AM23: 28.80765956 | AN23: 27.70623099 | AO23: 27.70623099 | AP23: 25.40623099 | AQ23: 24.62673099 | AR23: 24.62673099 | AS23: 24.62673099 | AT23: 24.66 | AU23: 30.66 | AV23: 30.66 | AW23: 30.66 | AX23: 30.66 | AY23: 26.96 | AZ23: 26.96 | BA23: 26.96 | BB23: 24.66 | BC23: 24.72 | BD23: 24.72 | BE23: 24.72 | BF23: 24.72 | BG23: 30.72 | BH23: 30.71 | BI23: 30.71 | BJ23: 30.71 | BK23: 27.01 | BL23: 26.57 | BM23: 26.57 | BN23: 24.27 | BO23: 24.08 | BP23: 24.09 | BQ23: 23.88 | BR23: 23.95 | BS23: 29.95 | BT23: 29.95 | BU23: 29.73 | BV23: 29.73 | BW23: 26.03 | BX23: 26.75
B24: Arla Foods Sweden | C24: Sweden | D24: 31.13171169 | E24: 30.8640284 | F24: 30.36302787 | G24: 30.4164795 | H24: 30.57314277 | I24: 30.07930995 | J24: 29.92241635 | K24: 29.76043407 | L24: 28.64845232 | M24: 29.24353428 | N24: 29.73093273 | O24: 29.66131322 | P24: 30.35369463 | Q24: 30.49920452 | R24: 30.90541791 | S24: 30.66578906 | T24: 30.36192502 | U24: 30.70241547 | V24: 30.19532673 | W24: 30.21074025 | X24: 30.53460117 | Y24: 30.76230205 | Z24: 30.84551716 | AA24: 30.79573743 | AB24: 30.52597732 | AC24: 31.26578403 | AD24: 30.99997791 | AE24: 31.23814509 | AF24: 31.00933927 | AG24: 31.14950145 | AH24: 30.91548264 | AI24: 30.73757834 | AJ24: 31.31569984 | AK24: 30.05626303 | AL24: 30.09642939 | AM24: 30.0034286 | AN24: 29.62273568 | AO24: 29.51318751 | AP24: 29.32922931 | AQ24: 28.43798019 | AR24: 28.54805578 | AS24: 28.51051091 | AT24: 28.29 | AU24: 28.31 | AV24: 28.62 | AW24: 28.61 | AX24: 28.3 | AY24: 28.36 | AZ24: 28.14 | BA24: 28.04 | BB24: 28.02 | BC24: 27.64 | BD24: 27.45 | BE24: 27.24 | BF24: 26.77 | BG24: 27.04 | BH24: 27.04 | BI24: 27.1 | BJ24: 26.7 | BK24: 27.06 | BL24: 27.39 | BM24: 27.31 | BN24: 27.14 | BO24: 26.93 | BP24: 26.94 | BQ24: 27.23 | BR24: 27.28 | BS24: 27.3 | BT24: 27.13 | BU24: 27.17 | BV24: 27.62 | BW24: 27.81 | BX24: 28.02
B26: Average | D26: =AVERAGE(D9:D24) -> 31.75159278 | E26: 31.28092525 | F26: 29.80619232 | G26: 29.38743043 | H26: 29.45964385 | I26: 30.0120388 | J26: 31.45006426 | K26: 33.30647049 | L26: 33.5191202 | M26: 34.12025024 | N26: 34.20601309 | O26: 33.31245248 | P26: 31.85732278 | Q26: 31.25233447 | R26: 29.71060204 | S26: 28.33975775 | T26: 27.64857515 | U26: 27.89832417 | V26: 28.84847072 | W26: 30.69498642 | X26: 30.92932248 | Y26: 31.82951091 | Z26: 32.01976353 | AA26: =AVERAGE(AA9:AA24) -> 31.16562322 | AB26: 30.34190797 | AC26: 29.90896041 | AD26: 28.63603872 | AE26: 27.66499381 | AF26: 27.40940575 | AG26: 27.60507321 | AH26: 28.79857454 | AI26: 30.53780644 | AJ26: 30.7031619 | AK26: 31.12593195 | AL26: =AVERAGE(AL9:AL24) -> 31.22217762 | AM26: =AVERAGE(AM9:AM24) -> 30.46310361 | AN26: =AVERAGE(AN9:AN24) -> 29.59467174 | AO26: =AVERAGE(AO9:AO24) -> 29.20305198 | AP26: =AVERAGE(AP9:AP24) -> 28.09286221 | AQ26: =AVERAGE(AQ9:AQ24) -> 26.9008693 | AR26: 26.7528399 | AS26: 27.08417243 | AT26: =AVERAGE(AT9:AT24) -> 28.196875 | AU26: 30.1 | AV26: 30.198125 | AW26: 30.645625 | AX26: 30.67375 | AY26: 29.72 | AZ26: 28.53 | BA26: 28.21 | BB26: 27.37 | BC26: 26.35 | BD26: 26.23 | BE26: 26.61 | BF26: 27.47 | BG26: 29.18 | BH26: 29.4 | BI26: 29.32 | BJ26: 29.35 | BK26: 28.34 | BL26: 27.77 | BM26: 27.66 | BN26: 26.6 | BO26: 25.95 | BP26: 25.5 | BQ26: 25.66 | BR26: 26.77 | BS26: 28.47 | BT26: 28.62 | BU26: 29.08 | BV26: 29.07 | BW26: 28.2 | BX26: 28.27
B28: New Zealand* | C28: New Zealand | D28: 17.89099526 | E28: 17.8398431 | F28: 17.35448665 | G28: 17.19120721 | H28: 18.20768823 | I28: 19.53470874 | J28: 19.10884131 | K28: 19.25430622 | L28: 18.50311516 | M28: 18.41901702 | N28: 18.86049193 | O28: 18.76690544 | P28: 19.34138874 | Q28: 19.3906905 | R28: 19.89710652 | S28: 20.15965814 | T28: 20.26218002 | U28: 14.04993207 | V28: 13.2861963 | W28: 13.01439792 | X28: 13.15394141 | Y28: 13.45236342 | Z28: 13.61407779 | AA28: 13.73360126 | AB28: 13.9574856 | AC28: 14.09328157 | AD28: 14.05836428 | AE28: 13.9276948 | AF28: 13.65824853 | AG28: 15.9031267 | AH28: 16.47281224 | AI28: 16.6853008 | AJ28: 16.61196359 | AK28: 16.4177685 | AL28: 17.13975205 | AM28: 16.81293169 | AN28: 17.00731171 | AO28: 17.46786632 | AP28: 17.19262262 | AQ28: 17.04962229 | AR28: 16.3913097 | AS28: 15.05417275 | AT28: 15.34 | AU28: 15.63 | AV28: 16.49 | AW28: 16.72 | AX28: 17.51 | AY28: 17.31 | AZ28: 18.22 | BA28: 18.67 | BB28: 18.78 | BC28: 18.89 | BD28: 19.24 | BE28: 16.91 | BF28: 16.38 | BG28: 17.09 | BH28: 17.24 | BI28: 17.54 | BJ28: 17.68 | BK28: 17.69 | BL28: 17.15 | BM28: 17.02 | BN28: 16.23 | BO28: 15.59 | BP28: 15.19 | BQ28: 14.96 | BR28: 14.88 | BS28: 15.12 | BT28: 15.72 | BU28: 16.04 | BV28: 15.88 | BW28: 16.02 | BX28: 16.88
B29: USA | C29: USA | D29: 26.46989345 | E29: 27.87051259 | F29: 31.45823828 | G29: 34.08488319 | H29: 39.74515355 | I29: 44.09682792 | J29: 44.89557888 | K29: 43.28197573 | L29: 43.86161432 | M29: 39.81414162 | N29: 31.61852667 | O29: 32.72782212 | P29: 33.33224579 | Q29: 33.12497454 | R29: 30.27242709 | S29: 30.35733666 | T29: 29.1380773 | U29: 26.12205782 | V29: 23.3144935 | W29: 24.15147747 | X29: 24.92054501 | Y29: 26.84604282 | Z29: 24.24270843 | AA29: 23.74140295 | AB29: 22.86104762 | AC29: 22.24342381 | AD29: 20.98658918 | AE29: 21.57244996 | AF29: 20.88626038 | AG29: 20.77709253 | AH29: 25.54035013 | AI29: 30.39986449 | AJ29: 31.18935385 | AK29: 30.10991957 | AL29: 28.2866938 | AM29: 23.96006555 | AN29: 22.95094083 | AO29: 23.70465868 | AP29: 29.91627899 | AQ29: 40.7947051 | AR29: 42.43174278 | AS29: 36.13877635 | AT29: 30.23 | AU29: 28.69 | AV29: 30.03 | AW29: 28.29 | AX29: 28.63 | AY29: 29.91 | AZ29: 26.75 | BA29: 27.99 | BB29: 26.43 | BC29: 27.92 | BD29: 26.8 | BE29: 28.28 | BF29: 29.59 | BG29: 27.54 | BH29: 29 | BI29: 29.63 | BJ29: 28.01 | BK29: 27.77 | BL29: 27.2 | BM29: 25.12 | BN29: 22.77 | BO29: 21.99 | BP29: 20.96 | BQ29: 21.99 | BR29: 21.24 | BS29: 21.34 | BT29: 23.84 | BU29: 24.09 | BV29: 24.49 | BW29: 24.95 | BX29: 25.64
B30: Parmalat | C30: IT | D30: 36.84591108 | E30: 36.84591108 | F30: 36.84591108 | G30: 41.07336031 | H30: 41.07336031 | I30: 41.07336031 | J30: 41.07336031 | K30: 41.07336031 | L30: 41.07336031 | M30: 41.07336031 | N30: 41.07336031 | O30: 41.07336031 | P30: 41.07336031 | Q30: 41.07336031 | R30: 41.07336031 | S30: 38.07787638 | T30: 38.07787638 | U30: 38.07787638 | V30: 39.3400123 | W30: 39.3400123 | X30: 39.3400123 | Y30: 39.3400123 | Z30: 39.3400123 | AA30: 39.3400123 | AB30: 39.3400123 | AC30: 39.3400123 | AD30: 39.3400123 | AE30: 39.3400123 | AF30: 39.3400123 | AG30: 39.3400123 | AH30: 39.3400123 | AI30: 39.3400123 | AJ30: 39.3400123 | AK30: 39.3400123 | AL30: 39.3400123 | AM30: 39.3400123 | AN30: 0 | AO30: 0 | AP30: 0 | AQ30: 0 | AR30: 0 | AS30: 0 | AT30: 0 | AU30: 0 | AV30: 0 | AW30: 0 | AX30: 0 | AY30: 0 | AZ30: 0 | BA30: 0 | BB30: 0 | BC30: 0 | BD30: 0 | BE30: 0 | BF30: 0 | BG30: 0 | BH30: 0 | BI30: 0 | BJ30: 0 | BK30: 0 | BL30: 0 | BM30: 0 | BN30: 0 | BO30: 0 | BP30: 0 | BQ30: 0 | BR30: 0 | BS30: 0 | BT30: 0 | BU30: 0 | BV30: 0 | BW30: 0 | BX30: 0
B32: Difference: Arla UK to average | D32: =D18-D26 -> -4.831938365 | E32: -3.549980292 | F32: -1.904626596 | G32: -0.3367511369 | H32: -1.133631433 | I32: -0.3707490973 | J32: 0.2994892756 | K32: 0.6321469998 | L32: -0.941361736 | M32: -1.587984142 | N32: -1.696858818 | O32: -2.189656147 | P32: -1.002235753 | Q32: -0.1447425655 | R32: 1.203705874 | S32: -2.381171899 | T32: -3.360170077 | U32: -3.164489152 | V32: -3.826101055 | W32: -2.521819939 | X32: -4.051125408 | Y32: -1.826183929 | Z32: -2.656885433 | AA32: -3.271585834 | AB32: -3.077733204 | AC32: -3.150009761 | AD32: -2.372020918 | AE32: -3.484198098 | AF32: -4.959297257 | AG32: -4.704766348 | AH32: -2.634233449 | AI32: -1.556615602 | AJ32: -3.018840068 | AK32: -3.497590172 | AL32: -3.170971247 | AM32: -3.883861925 | AN32: -2.647592508 | AO32: -1.64993242 | AP32: -0.298084676 | AQ32: -0.8877534257 | AR32: -2.009275835 | AS32: -1.042048563 | AT32: -0.326875 | AU32: 0.52 | AV32: =AV18-AV26 -> -2.098125 | AW32: -2.965625 | AX32: -3.55375 | AY32: -3.59 | AZ32: -2.53 | BA32: -1.86 | BB32: =BB18-BB26 -> -0.08 | BC32: -0.54 | BD32: -1.45 | BE32: -0.26 | BF32: -0.47 | BG32: 0.72 | BH32: -1.09 | BI32: =BI18-BI26 -> -1.18 | BJ32: -1.4 | BK32: -1.53 | BL32: -1.24 | BM32: -2.28 | BN32: -1.45 | BO32: -1.95 | BP32: =BP18-BP26 -> -2.11 | BQ32: -2.32 | BR32: -1.97 | BS32: -0.4 | BT32: -2.57 | BU32: -2.28 | BV32: -2.61 | BW32: -3.5 | BX32: =BX18-BX26 -> -2.86
B33: Difference: First Milk to average | D33: =D19-D26 -> -5.428349766 | E33: -4.914424372 | F33: -3.27746572 | G33: -1.736258057 | H33: -3.18548533 | I33: -1.79870848 | J33: 0.6270958547 | K33: -2.152449434 | L33: -2.962082464 | M33: -3.715484475 | N33: -4.018036482 | O33: -3.27872362 | P33: -3.81960001 | Q33: -3.619833106 | R33: -2.249792529 | S33: -4.524978235 | T33: -8.335016595 | U33: -8.316002762 | V33: -5.293585696 | W33: -4.758697222 | X33: -4.38140595 | Y33: -3.522609579 | Z33: -4.410648539 | AA33: -5.409167083 | AB33: -5.167046699 | AC33: -5.200606825 | AD33: -4.384690192 | AE33: -5.236107706 | AF33: -6.654016907 | AG33: -6.181027058 | AH33: -5.509711167 | AI33: -5.762126886 | AJ33: -5.021426048 | AK33: -4.788553472 | AL33: -4.521193307 | AM33: -4.803193226 | AN33: -3.989587236 | AO33: -3.022108635 | AP33: -2.260702081 | AQ33: -3.379937981 | AR33: -4.40941525 | AS33: -4.055488771 | AT33: -3.786875 | AU33: -4.65 | AV33: -3.758125 | AW33: -5.035625 | AX33: -4.98375 | AY33: =AY19-AY26 -> -4.86 | AZ33: -4.15 | BA33: -3.5 | BB33: -3.19 | BC33: -3.46 | BD33: -4.32 | BE33: -3.91 | BF33: =BF19-BF26 -> -4.03 | BG33: -4.17 | BH33: -3.2 | BI33: -3.33 | BJ33: -3.21 | BK33: -3.17 | BL33: =BL19-BL26 -> -3.23 | BM33: -3.01 | BN33: -2.17 | BO33: -2.86 | BP33: -3.41 | BQ33: -3.38 | BR33: =BR19-BR26 -> -3.16 | BS33: -3.01 | BT33: -3.34 | BU33: -3.71 | BV33: -3.52 | BW33: -3.43 | BX33: =BX19-BX26 -> -3.38
B36: MILK PRICES - Average milk price
B37: Month | D37: 2002 | E37: 2003 | F37: 2004 | G37: 2005 | H37: 2006 | I37: 2007
B38: Jan | D38: 31.85732278 | E38: 30.34190797 | F38: 29.59467174 | G38: 28.53 | H38: 27.77 | I38: 28.27
B39: Feb | D39: 31.25233447 | E39: 29.90896041 | F39: 29.20305198 | G39: 28.21 | H39: 27.66
B40: Mar | D40: 29.71060204 | E40: 28.63603872 | F40: 28.09286221 | G40: 27.37 | H40: 26.6
B41: Apr | D41: 28.33975775 | E41: 27.66499381 | F41: 26.9008693 | G41: 26.35 | H41: 25.95
B42: May | D42: 27.64857515 | E42: 27.40940575 | F42: 26.7528399 | G42: 26.23 | H42: 25.5
B43: Jun | D43: 27.89832417 | E43: 27.60507321 | F43: 27.08417243 | G43: 26.61 | H43: 25.66
B44: Jul | D44: 28.84847072 | E44: 28.79857454 | F44: 28.2 | G44: 27.47 | H44: 26.77
B45: Aug | D45: 30.69498642 | E45: 30.53780644 | F45: 30.1 | G45: 29.18 | H45: 28.47
B46: Sep | D46: 30.92932248 | E46: 30.7031619 | F46: 30.2 | G46: 29.4 | H46: 28.62
B47: Oct | D47: 31.82951091 | E47: 31.12593195 | F47: 30.65 | G47: 29.32 | H47: 29.08
B48: Nov | D48: 32.01976353 | E48: 31.22217762 | F48: 30.67 | G48: 29.35 | H48: 29.07
B49: Dec | D49: 31.16562322 | E49: 30.46310361 | F49: 29.72 | G49: 28.34 | H49: 28.2

Sheet Charts

Sheet Notes and disclaimer
A2: Notes
A4: LTO figures are calculated differently to DG-Agri figures and are therefore not comparable.
A5: LTO 2001-2007 figures use a standard litre of 4.2% fat, 3.4% (crude) protein and somatic cell count 249,999 and total bacterial count 24,999, using a yearly production quantity of 500,000kg, excluding VAT and assuming every other day collection, to gain an average price. Whereas DG-Agri figures are averages paid in the specific country and are not comparable on a standard litre basis.
A6: * Based on payput forecast, adjusted for 4.2% fat and 3.4% protein.
A7: ** Based on USDA announcement, adjusted for 4.2% fat, 3.4% protein and somatic cell count 249,999 per ml
A8: *** Granarolo is excluded from the EU average until May 2011
A9: **** Arithmetic average
A10: † As of January 2016 the milk prices of the British First Milk and Finnish Hameenlinnan Osuusmeijeri will no longer be calculated. This is because the milk price data are no longer being supplied and therefore it was decided to add other dairy companies in the coming months. Due to this change the new average of is no longer comparable with the average of the 16 companies in the previous publications.
A13: Disclaimer
A15: While AHDB seeks to ensure that the information contained within this document is accurate at the time of printing, no warranty is given in respect of the information and data provided. You are responsible for how you use the information. To the maximum extent permitted by law, AHDB accepts no liability for loss, damage or injury howsoever caused or suffered (including that caused by negligence) directly or indirectly in relation to the information or data provided in this publication.
A20: All intellectual property rights in the information and data in this document belong to or are licensed by AHDB. You are authorised to use such information for your internal business purposes only and you must not provide this information to any other third parties, including further publication of the information, or for commercial gain in any way whatsoever without the prior written permission of AHDB for each third party disclosure, publication or commercial arrangement. For more information, please see our Terms of Use and Privacy Notice or contact the Director of Corporate Affairs at info@ahdb.org.uk
A25: © Agriculture and Horticulture Development Board 2021. All rights reserved.
A27: Contact us
A29: Head Office Address | B29: Agriculture and Horticulture Development Board Stoneleigh Park Kenilworth Warwickshire CV8 2TL
A34: Telephone | B34: 024 7669 2051
A35: Email | B35: mi@ahdb.org.uk
A36: Website | B36: ahdb.org.uk
